Department family,Entity,Date,Expense type,Expense area,Description,Supplier,Transaction number,Amount
Department for Education,EDUCATION FUNDING AGENCY,03/11/2014,Grants,Academies general,Current grants paid to organisations including arms length bodies and educational establishments,Attwood Academies,PAYBACSAUTO      195889,12500.00
Department for Education,EDUCATION FUNDING AGENCY,03/11/2014,Grants,Academies general,Current grants paid to organisations including arms length bodies and educational establishments,Attwood Academies,PAYBACSAUTO      195889,520227.00
Department for Education,EDUCATION FUNDING AGENCY,03/11/2014,Grants,Academies general,Current grants paid to organisations including arms length bodies and educational establishments,Attwood Academies,PAYBACSAUTO      195889,10000.00
Department for Education,EDUCATION FUNDING AGENCY,03/11/2014,Grants,Academies general,Current grants paid to organisations including arms length bodies and educational establishments,Attwood Academies,PAYBACSAUTO      195889,14840.00
Department for Education,EDUCATION FUNDING AGENCY,03/11/2014,Grants,Academies general,Current grants paid to organisations including arms length bodies and educational establishments,Attwood Academies,PAYBACSAUTO      195889,-1777.00
Department for Education,EDUCATION FUNDING AGENCY,03/11/2014,Grants,Academies general,Current grants paid to organisations including arms length bodies and educational establishments,Attwood Academies,PAYBACSAUTO      195889,-29274.00
Department for Education,EDUCATION FUNDING AGENCY,03/11/2014,Grants,Academies general,Current grants paid to organisations including arms length bodies and educational establishments,Attwood Academies,PAYBACSAUTO      195889,-3250.00
Department for Education,EDUCATION FUNDING AGENCY,03/11/2014,Grants,Academies general,Current grants paid to organisations including arms length bodies and educational establishments,Outwood Academy Foxhills,PAYBACSAUTO      195890,29542.28
Department for Education,EDUCATION FUNDING AGENCY,03/11/2014,Grants,Academies general,Current grants paid to organisations including arms length bodies and educational establishments,Inspiration Trust,PAYBACSAUTO      195891,9500.00
Department for Education,EDUCATION FUNDING AGENCY,03/11/2014,Grants,Academies general,Current grants paid to organisations including arms length bodies and educational establishments,Inspiration Trust,PAYBACSAUTO      195891,25000.00
Department for Education,EDUCATION FUNDING AGENCY,03/11/2014,Grants,Academies general,Current grants paid to organisations including arms length bodies and educational establishments,Inspiration Trust,PAYBACSAUTO      195891,-1903.00
Department for Education,EDUCATION FUNDING AGENCY,03/11/2014,Grants,Academies general,Current grants paid to organisations including arms length bodies and educational establishments,Inspiration Trust,PAYBACSAUTO      195891,-4500.00
Department for Education,EDUCATION FUNDING AGENCY,03/11/2014,Grants,Academies general,Current grants paid to organisations including arms length bodies and educational establishments,Inspiration Trust,PAYBACSAUTO      195891,6129.00
Department for Education,EDUCATION FUNDING AGENCY,03/11/2014,Grants,Academies general,Current grants paid to organisations including arms length bodies and educational establishments,Inspiration Trust,PAYBACSAUTO      195891,328514.00
Department for Education,EDUCATION FUNDING AGENCY,03/11/2014,Grants,Academies general,Current grants paid to organisations including arms length bodies and educational establishments,Inspiration Trust,PAYBACSAUTO      195891,8878.00
Department for Education,EDUCATION FUNDING AGENCY,03/11/2014,Grants,Academies general,Current grants paid to organisations including arms length bodies and educational establishments,Inspiration Trust,PAYBACSAUTO      195891,-25000.00
Department for Education,EDUCATION FUNDING AGENCY,03/11/2014,Grants,Academies general,Current grants paid to organisations including arms length bodies and educational establishments,Inspiration Trust,PAYBACSAUTO      195891,-911.00
Department for Education,EDUCATION FUNDING AGENCY,03/11/2014,Grants,Academies general,Current grants paid to organisations including arms length bodies and educational establishments,Torch Academy Gateway Trust,PAYBACSAUTO      195893,43561.81
Department for Education,EDUCATION FUNDING AGENCY,03/11/2014,Grants,Academies general,Current grants paid to organisations including arms length bodies and educational establishments,United Learning Trust,PAYBACSAUTO      195895,102000.00
Department for Education,EDUCATION FUNDING AGENCY,03/11/2014,Grants,Academies general,Current grants paid to organisations including arms length bodies and educational establishments,United Learning Trust,PAYBACSAUTO      195896,102000.00
Department for Education,EDUCATION FUNDING AGENCY,03/11/2014,Professional Services Other,Free School Advice,"Fees / expenses of professionals, for example to implement advice or changes",BOND DICKINSON (FORMERLY DICKINSON DEES),356784,7191120.20
Department for Education,EDUCATION FUNDING AGENCY,03/11/2014,Professional Services Other,Free School Technical Advice,"Fees / expenses of professionals, for example to implement advice or changes",GARDINER & THEOBALD LLP,356788,92258.65
Department for Education,EDUCATION FUNDING AGENCY,03/11/2014,Professional Services Other,Priority Schools Building Programme Team,"Fees / expenses of professionals, for example to implement advice or changes",MOTT MACDONALD,356796,53802.60
Department for Education,EDUCATION FUNDING AGENCY,03/11/2014,Professional Services Other,Priority Schools Building Programme Team,"Fees / expenses of professionals, for example to implement advice or changes",MOTT MACDONALD,356796,-2908.80
Department for Education,EDUCATION FUNDING AGENCY,03/11/2014,Professional Services Other,Priority Schools Building Programme Team,"Fees / expenses of professionals, for example to implement advice or changes",MOTT MACDONALD,356796,91969.20
Department for Education,EDUCATION FUNDING AGENCY,03/11/2014,Professional Services Consultancy and Contingent Labour,Free School Technical Advice,"Fees / expenses of professionals such as auditors, accountants, lawyers, etc. engaged to provide advice or opinion on how to affect something",MACE LTD,356802,179768.16
Department for Education,EDUCATION FUNDING AGENCY,03/11/2014,Professional Services Consultancy and Contingent Labour,University Technology Colleges,"Fees / expenses of professionals such as auditors, accountants, lawyers, etc. engaged to provide advice or opinion on how to affect something",MACE LTD,356802,4371.84
Department for Education,EDUCATION FUNDING AGENCY,03/11/2014,Professional Services Other,Free School Technical Advice,"Fees / expenses of professionals, for example to implement advice or changes",MACE LTD,356802,39291.36
Department for Education,EDUCATION FUNDING AGENCY,03/11/2014,Professional Services Consultancy and Contingent Labour,Free School Technical Advice,"Fees / expenses of professionals such as auditors, accountants, lawyers, etc. engaged to provide advice or opinion on how to affect something",JACOBS,356804,-642.00
Department for Education,EDUCATION FUNDING AGENCY,03/11/2014,Professional Services Other,Free School Technical Advice,"Fees / expenses of professionals, for example to implement advice or changes",JACOBS,356804,473655.64
Department for Education,EDUCATION FUNDING AGENCY,03/11/2014,Professional Services Consultancy and Contingent Labour,Priority Schools Building Programme Team,"Fees / expenses of professionals such as auditors, accountants, lawyers, etc. engaged to provide advice or opinion on how to affect something",ASHURST,356808,45170.66
Department for Education,EDUCATION FUNDING AGENCY,03/11/2014,Professional Services Other,Priority Schools Building Programme Team,"Fees / expenses of professionals, for example to implement advice or changes",ASHURST,356808,119434.64
Department for Education,EDUCATION FUNDING AGENCY,03/11/2014,Professional Services Other,Central Administrative Team,"Fees / expenses of professionals, for example to implement advice or changes",QUALITAS PARTNERING LTD,356818,28624.80
Department for Education,EDUCATION FUNDING AGENCY,03/11/2014,Professional Services Other,Free School Technical Advice,"Fees / expenses of professionals, for example to implement advice or changes",MCAVOY,356826,85209.60
Department for Education,EDUCATION FUNDING AGENCY,03/11/2014,Professional Services Consultancy and Contingent Labour,Free School Technical Advice,"Fees / expenses of professionals such as auditors, accountants, lawyers, etc. engaged to provide advice or opinion on how to affect something",TURNER & TOWNSEND,356828,19186.04
Department for Education,EDUCATION FUNDING AGENCY,03/11/2014,Professional Services Other,Free School Technical Advice,"Fees / expenses of professionals, for example to implement advice or changes",TURNER & TOWNSEND,356828,39375.60
Department for Education,EDUCATION FUNDING AGENCY,03/11/2014,Grants,Partnership for Schools Legacy,Capital grants paid to local authorities and other educational establishments,THE LATYMER SCHOOL CAPITAL FUND,356840,52479.58
Department for Education,EDUCATION FUNDING AGENCY,03/11/2014,Grants,Partnership for Schools Legacy,Capital grants paid to local authorities and other educational establishments,EAST GRINSTEAD ST PETERS SCHOOL GOVERNMENT ACCOUNT,356842,39099.57
Department for Education,EDUCATION FUNDING AGENCY,03/11/2014,Grants,Partnership for Schools Legacy,Capital grants paid to local authorities and other educational establishments,COTTESMORE ST MARYS GOVERNMENT FUND ACCOUNT,356844,40176.00
Department for Education,EDUCATION FUNDING AGENCY,03/11/2014,Grants,Partnership for Schools Legacy,Capital grants paid to local authorities and other educational establishments,MATHILDA MARK-KENNEDY SCHOOL,356848,35002.14
Department for Education,EDUCATION FUNDING AGENCY,03/11/2014,Grants,Free School Capital Costs,Capital grants paid to local authorities and other educational establishments,BECKET KEYS CE FREE SCHOOL TRUST,356850,27458.24
Department for Education,EDUCATION FUNDING AGENCY,03/11/2014,Grants,Free School Capital Costs,Capital grants paid to local authorities and other educational establishments,BECKET KEYS CE FREE SCHOOL TRUST,356850,5250.00
Department for Education,EDUCATION FUNDING AGENCY,03/11/2014,Grants,Free School Capital Costs,Capital grants paid to local authorities and other educational establishments,HARPENDEN FREE SCHOOL,356852,249945.22
Department for Education,EDUCATION FUNDING AGENCY,03/11/2014,Grants,Free School Capital Costs,Capital grants paid to local authorities and other educational establishments,HOLYPORY FREE SCHOOL,356854,85210.33
Department for Education,EDUCATION FUNDING AGENCY,03/11/2014,Grants,Free School Capital Costs,Capital grants paid to local authorities and other educational establishments,HABERDASHERS' ASKE HATCHAM COLLEGE,356858,116860.09
Department for Education,EDUCATION FUNDING AGENCY,03/11/2014,Grants,Free School Capital Costs,Capital grants paid to local authorities and other educational establishments,HABERDASHERS' ASKE HATCHAM COLLEGE,356858,45681.02
Department for Education,EDUCATION FUNDING AGENCY,03/11/2014,Grants,Free School Capital Costs,Capital grants paid to local authorities and other educational establishments,LONGSIGHT COMMUNITY PRIMARY LTD,356860,164533.45
Department for Education,EDUCATION FUNDING AGENCY,03/11/2014,Grants,Free School Capital Costs,Capital grants paid to local authorities and other educational establishments,LONGSIGHT COMMUNITY PRIMARY LTD,356860,7123.33
Department for Education,EDUCATION FUNDING AGENCY,03/11/2014,Grants,Free School Capital Costs,Capital grants paid to local authorities and other educational establishments,THE OLIVE TREE PRIMARY SCHOOL BOLTON LTD,356862,35855.33
Department for Education,EDUCATION FUNDING AGENCY,03/11/2014,Grants,Partnership for Schools Legacy,Capital grants paid to local authorities and other educational establishments,HOLY CROSS CATHOLIC PRIMARY SCHOOL,356864,45415.83
Department for Education,EDUCATION FUNDING AGENCY,03/11/2014,Grants,Free School Capital Costs,Capital grants paid to local authorities and other educational establishments,WOLVERHAMPTON SANGAT EDUCATION TRUST,356870,63643.29
Department for Education,EDUCATION FUNDING AGENCY,03/11/2014,Grants,Studio Schools,Capital grants paid to local authorities and other educational establishments,MANCHESTER CREATIVE STUDIO SCHOOL,356876,314155.29
Department for Education,EDUCATION FUNDING AGENCY,03/11/2014,Grants,Studio Schools,Capital grants paid to local authorities and other educational establishments,FUTURE TECH STUDIO SCHOOL,356878,223666.00
Department for Education,EDUCATION FUNDING AGENCY,03/11/2014,Grants,Free School Capital Costs,Capital grants paid to local authorities and other educational establishments,NAS CHESHIRE FREE SCHOOL (CHURCH LAWTON),356880,459780.00
Department for Education,EDUCATION FUNDING AGENCY,03/11/2014,Grants,Studio Schools,Capital grants paid to local authorities and other educational establishments,SPACE STUDIO SCHOOL,356882,72318.71
Department for Education,EDUCATION FUNDING AGENCY,03/11/2014,Grants,Studio Schools,Capital grants paid to local authorities and other educational establishments,SPACE STUDIO SCHOOL,356882,979.90
Department for Education,EDUCATION FUNDING AGENCY,03/11/2014,Grants,University Technology Colleges,Capital grants paid to local authorities and other educational establishments,TOTTENHAM UTC,356884,114137.24
Department for Education,EDUCATION FUNDING AGENCY,03/11/2014,Grants,University Technology Colleges,Capital grants paid to local authorities and other educational establishments,LONDON DESIGN & ENGINEERING UTC,356886,64288.02
Department for Education,EDUCATION FUNDING AGENCY,03/11/2014,Grants,Free School Capital Costs,Capital grants paid to local authorities and other educational establishments,ISLAND COMMUNITY SCHOOL  (THE ISLAND FREE SCHOOL),356890,3059.45
Department for Education,EDUCATION FUNDING AGENCY,03/11/2014,Grants,Free School Capital Costs,Capital grants paid to local authorities and other educational establishments,ISLAND COMMUNITY SCHOOL  (THE ISLAND FREE SCHOOL),356890,22518.72
Department for Education,EDUCATION FUNDING AGENCY,05/11/2014,Grants,Young People's Funding,Grants to third sector organisations / not for profit organisations and other businesses,CAPITA BUSINESS SERVICES LTD,PAYBACSAUTO      195899,738983.00
Department for Education,EDUCATION FUNDING AGENCY,05/11/2014,Grants,Young People's Funding,Grants to third sector organisations / not for profit organisations and other businesses,CAPITA BUSINESS SERVICES LTD,PAYBACSAUTO      195899,30578.85
Department for Education,EDUCATION FUNDING AGENCY,05/11/2014,Grants,Young People's Funding,Grants to third sector organisations / not for profit organisations and other businesses,CAPITA BUSINESS SERVICES LTD,PAYBACSAUTO      195899,209237.38
Department for Education,EDUCATION FUNDING AGENCY,05/11/2014,Grants,Young People's Funding,Grants to third sector organisations / not for profit organisations and other businesses,CAPITA BUSINESS SERVICES LTD,PAYBACSAUTO      195899,2972.55
Department for Education,EDUCATION FUNDING AGENCY,05/11/2014,Professional Services Other,Priority Schools Building Programme Team,"Fees / expenses of professionals, for example to implement advice or changes",ERNST & YOUNG LLP,357053,241892.40
Department for Education,EDUCATION FUNDING AGENCY,05/11/2014,Professional Services Consultancy and Contingent Labour,Free School Technical Advice,"Fees / expenses of professionals such as auditors, accountants, lawyers, etc. engaged to provide advice or opinion on how to affect something",JACOBS,357061,266382.66
Department for Education,EDUCATION FUNDING AGENCY,05/11/2014,Professional Services Other,Free School Technical Advice,"Fees / expenses of professionals, for example to implement advice or changes",JACOBS,357061,29572.80
Department for Education,EDUCATION FUNDING AGENCY,05/11/2014,Grants,Priority Schools Building Programme Team,Capital grants paid to local authorities and other educational establishments,BAM CONSTRUCTION LTD,357063,699441.60
Department for Education,EDUCATION FUNDING AGENCY,05/11/2014,Grants,Priority Schools Building Programme Team,Capital grants paid to local authorities and other educational establishments,WATES CONSTRUCTION LTD,357065,4195981.25
Department for Education,EDUCATION FUNDING AGENCY,05/11/2014,Grants,Priority Schools Building Programme Team,Capital grants paid to local authorities and other educational establishments,WILLMOTT DIXON CONSTRUCTION LIMITED,357067,1344613.25
Department for Education,EDUCATION FUNDING AGENCY,05/11/2014,Professional Services Consultancy and Contingent Labour,Central Administrative Team,"Fees / expenses of professionals from the private sector such as auditors, accountants, lawyers, etc. engaged to provide advice or opinion on how to affect something",ZAIZI LIMITED,357071,57000.00
Department for Education,EDUCATION FUNDING AGENCY,05/11/2014,Professional Services Other,Central Administrative Team,"Fees / expenses of professionals, for example to implement advice or changes",BARNETT WADDINGHAM LLP,357077,117960.00
Department for Education,EDUCATION FUNDING AGENCY,05/11/2014,Grants,Partnership for Schools Legacy,Capital grants paid to local authorities and other educational establishments,NORTHAMPTON ROMAN CATHOLIC DIOCESE TRUST,357081,90482.24
Department for Education,EDUCATION FUNDING AGENCY,05/11/2014,Grants,Free School Capital Costs,Capital grants paid to local authorities and other educational establishments,REACH ACADEMY LTD MAIN ACCOUNT,357085,122161.82
Department for Education,EDUCATION FUNDING AGENCY,05/11/2014,Grants,Free School Capital Costs,Capital grants paid to local authorities and other educational establishments,OASIS COMMUNITY LEARNING,357095,112781.92
Department for Education,EDUCATION FUNDING AGENCY,05/11/2014,Grants,Free School Capital Costs,Capital grants paid to local authorities and other educational establishments,BELLEVUE PLACE EDUCATION TRUST,357097,42638.85
Department for Education,EDUCATION FUNDING AGENCY,05/11/2014,Grants,Free School Capital Costs,Capital grants paid to local authorities and other educational establishments,SUSSEX EDUCATION TRUST LIMITED,357101,11440.45
Department for Education,EDUCATION FUNDING AGENCY,05/11/2014,Grants,Free School Capital Costs,Capital grants paid to local authorities and other educational establishments,SUSSEX EDUCATION TRUST LIMITED,357101,48500.38
Department for Education,EDUCATION FUNDING AGENCY,05/11/2014,Grants,Free School Capital Costs,Capital grants paid to local authorities and other educational establishments,STEINER ACADEMY,357103,551168.24
Department for Education,EDUCATION FUNDING AGENCY,05/11/2014,Grants,University Technology Colleges,Capital grants paid to local authorities and other educational establishments,UTC CAMBRIDGE,357105,99382.02
Department for Education,EDUCATION FUNDING AGENCY,05/11/2014,Grants,University Technology Colleges,Capital grants paid to local authorities and other educational establishments,HARLOW UTC T/A SIR CHARLES KAO UTC,357107,386626.75
Department for Education,EDUCATION FUNDING AGENCY,05/11/2014,Grants,Free School Capital Costs,Capital grants paid to local authorities and other educational establishments,SIR ISAAC NEWTON FREE SCHOOL  NORWICH,357109,450701.32
Department for Education,EDUCATION FUNDING AGENCY,05/11/2014,Grants,Studio Schools,Capital grants paid to local authorities and other educational establishments,NORTH HERTFORDSHIRE STUDIO SCHOOL TRUST,357111,12877.02
Department for Education,EDUCATION FUNDING AGENCY,05/11/2014,Grants,Studio Schools,Capital grants paid to local authorities and other educational establishments,NORTH HERTFORDSHIRE STUDIO SCHOOL TRUST,357111,15333.35
Department for Education,EDUCATION FUNDING AGENCY,05/11/2014,Grants,Studio Schools,Capital grants paid to local authorities and other educational establishments,THE LUTTERWORTH ACADEMIES TRUST,357113,2310.00
Department for Education,EDUCATION FUNDING AGENCY,05/11/2014,Grants,Studio Schools,Capital grants paid to local authorities and other educational establishments,THE LUTTERWORTH ACADEMIES TRUST,357113,46550.68
Department for Education,EDUCATION FUNDING AGENCY,05/11/2014,Grants,Free School Capital Costs,Capital grants paid to local authorities and other educational establishments,CHAPELTOWN ACADEMY,357117,69.12
Department for Education,EDUCATION FUNDING AGENCY,05/11/2014,Grants,Free School Capital Costs,Capital grants paid to local authorities and other educational establishments,CHAPELTOWN ACADEMY,357117,48399.28
Department for Education,EDUCATION FUNDING AGENCY,05/11/2014,Grants,Studio Schools,Capital grants paid to local authorities and other educational establishments,ATRIUM STUDIO SCHOOL,357119,71416.12
Department for Education,EDUCATION FUNDING AGENCY,05/11/2014,Grants,University Technology Colleges,Capital grants paid to local authorities and other educational establishments,SOUTH WILTSHIRE UTC,357121,28632.24
Department for Education,EDUCATION FUNDING AGENCY,05/11/2014,Grants,University Technology Colleges,Capital grants paid to local authorities and other educational establishments,SCIENCE UTC OXFORDSHIRE TRUST,357123,800166.61
Department for Education,EDUCATION FUNDING AGENCY,06/11/2014,Professional Services Consultancy and Contingent Labour,Free School Technical Advice,"Fees / expenses of professionals such as auditors, accountants, lawyers, etc. engaged to provide advice or opinion on how to affect something",EC HARRIS LLP,357298,99360.00
Department for Education,EDUCATION FUNDING AGENCY,06/11/2014,Professional Services Other,Priority Schools Building Programme Team,"Fees / expenses of professionals, for example to implement advice or changes",EC HARRIS LLP,357298,7911.60
Department for Education,EDUCATION FUNDING AGENCY,06/11/2014,Professional Services Other,Priority Schools Building Programme Team,"Fees / expenses of professionals, for example to implement advice or changes",EC HARRIS LLP,357298,8100.00
Department for Education,EDUCATION FUNDING AGENCY,06/11/2014,Professional Services Consultancy and Contingent Labour,Priority Schools Building Programme Team,"Fees / expenses of professionals such as auditors, accountants, lawyers, etc. engaged to provide advice or opinion on how to affect something",EC HARRIS LLP,357298,27439.20
Department for Education,EDUCATION FUNDING AGENCY,06/11/2014,Professional Services Consultancy and Contingent Labour,Free School Property Advice,"Fees / expenses of professionals such as auditors, accountants, lawyers, etc. engaged to provide advice or opinion on how to affect something",MACE LTD,357300,4751.98
Department for Education,EDUCATION FUNDING AGENCY,06/11/2014,Professional Services Other,Priority Schools Building Programme Team,"Fees / expenses of professionals, for example to implement advice or changes",MACE LTD,357300,86628.92
Department for Education,EDUCATION FUNDING AGENCY,06/11/2014,Professional Services Other,Free School Technical Advice,"Fees / expenses of professionals, for example to implement advice or changes",JACOBS,357302,49320.00
Department for Education,EDUCATION FUNDING AGENCY,06/11/2014,Grants,Priority Schools Building Programme Team,Capital grants paid to local authorities and other educational establishments,WATES CONSTRUCTION LTD,357304,200978.40
Department for Education,EDUCATION FUNDING AGENCY,06/11/2014,Grants,Priority Schools Building Programme Team,Capital grants paid to local authorities and other educational establishments,CARILLION PLC,357312,309956.90
Department for Education,EDUCATION FUNDING AGENCY,06/11/2014,Professional Services Other,Free School Technical Advice,"Fees / expenses of professionals, for example to implement advice or changes",TURNER & TOWNSEND,357314,189629.84
Department for Education,EDUCATION FUNDING AGENCY,06/11/2014,Professional Services Other,Free School Technical Advice,"Fees / expenses of professionals, for example to implement advice or changes",TURNER & TOWNSEND,357314,22513.20
Department for Education,EDUCATION FUNDING AGENCY,10/11/2014,Grants,Academies general,Current grants paid to organisations including arms length bodies and educational establishments,Washwood Heath MAT,PAYBACSAUTO      195900,12493.00
Department for Education,EDUCATION FUNDING AGENCY,10/11/2014,Grants,Academies general,Current grants paid to organisations including arms length bodies and educational establishments,Washwood Heath MAT,PAYBACSAUTO      195900,2472.00
Department for Education,EDUCATION FUNDING AGENCY,10/11/2014,Grants,Academies general,Current grants paid to organisations including arms length bodies and educational establishments,Washwood Heath MAT,PAYBACSAUTO      195900,70343.00
Department for Education,EDUCATION FUNDING AGENCY,10/11/2014,Grants,Academies general,Current grants paid to organisations including arms length bodies and educational establishments,Avocet Academy Trust,PAYBACSAUTO      195901,21535.00
Department for Education,EDUCATION FUNDING AGENCY,10/11/2014,Grants,Academies general,Current grants paid to organisations including arms length bodies and educational establishments,Avocet Academy Trust,PAYBACSAUTO      195901,-1465.00
Department for Education,EDUCATION FUNDING AGENCY,10/11/2014,Grants,Academies general,Current grants paid to organisations including arms length bodies and educational establishments,Avocet Academy Trust,PAYBACSAUTO      195901,9495.00
Department for Education,EDUCATION FUNDING AGENCY,10/11/2014,Grants,Academies general,Current grants paid to organisations including arms length bodies and educational establishments,Avocet Academy Trust,PAYBACSAUTO      195901,851.00
Department for Education,EDUCATION FUNDING AGENCY,10/11/2014,Grants,Academies general,Current grants paid to organisations including arms length bodies and educational establishments,Inspiration Trust,PAYBACSAUTO      195903,-4500.00
Department for Education,EDUCATION FUNDING AGENCY,10/11/2014,Grants,Academies general,Current grants paid to organisations including arms length bodies and educational establishments,Inspiration Trust,PAYBACSAUTO      195903,6129.00
Department for Education,EDUCATION FUNDING AGENCY,10/11/2014,Grants,Academies general,Current grants paid to organisations including arms length bodies and educational establishments,Inspiration Trust,PAYBACSAUTO      195903,-911.00
Department for Education,EDUCATION FUNDING AGENCY,10/11/2014,Grants,Academies general,Current grants paid to organisations including arms length bodies and educational establishments,Inspiration Trust,PAYBACSAUTO      195903,9500.00
Department for Education,EDUCATION FUNDING AGENCY,10/11/2014,Grants,Academies general,Current grants paid to organisations including arms length bodies and educational establishments,Inspiration Trust,PAYBACSAUTO      195903,328514.00
Department for Education,EDUCATION FUNDING AGENCY,10/11/2014,Grants,Academies general,Current grants paid to organisations including arms length bodies and educational establishments,Inspiration Trust,PAYBACSAUTO      195903,-1903.00
Department for Education,EDUCATION FUNDING AGENCY,10/11/2014,Grants,Academies general,Current grants paid to organisations including arms length bodies and educational establishments,Inspiration Trust,PAYBACSAUTO      195903,8878.00
Department for Education,EDUCATION FUNDING AGENCY,10/11/2014,Grants,Academies general,Current grants paid to organisations including arms length bodies and educational establishments,Avocet Academy Trust,PAYBACSAUTO      195904,3260.00
Department for Education,EDUCATION FUNDING AGENCY,10/11/2014,Grants,Academies general,Current grants paid to organisations including arms length bodies and educational establishments,Avocet Academy Trust,PAYBACSAUTO      195904,9495.00
Department for Education,EDUCATION FUNDING AGENCY,10/11/2014,Grants,Academies general,Current grants paid to organisations including arms length bodies and educational establishments,Avocet Academy Trust,PAYBACSAUTO      195904,72321.00
Department for Education,EDUCATION FUNDING AGENCY,10/11/2014,Grants,Academies general,Current grants paid to organisations including arms length bodies and educational establishments,Avocet Academy Trust,PAYBACSAUTO      195904,2530.00
Department for Education,EDUCATION FUNDING AGENCY,10/11/2014,Grants,Academies general,Current grants paid to organisations including arms length bodies and educational establishments,Castle School Education Trust,PAYBACSAUTO      195905,-1505.00
Department for Education,EDUCATION FUNDING AGENCY,10/11/2014,Grants,Academies general,Current grants paid to organisations including arms length bodies and educational establishments,Castle School Education Trust,PAYBACSAUTO      195905,58145.00
Department for Education,EDUCATION FUNDING AGENCY,10/11/2014,Grants,Academies general,Current grants paid to organisations including arms length bodies and educational establishments,Castle School Education Trust,PAYBACSAUTO      195905,277681.00
Department for Education,EDUCATION FUNDING AGENCY,10/11/2014,Grants,Academies general,Current grants paid to organisations including arms length bodies and educational establishments,Castle School Education Trust,PAYBACSAUTO      195905,13396.00
Department for Education,EDUCATION FUNDING AGENCY,10/11/2014,Grants,Academies general,Current grants paid to organisations including arms length bodies and educational establishments,Castle School Education Trust,PAYBACSAUTO      195905,11252.00
Department for Education,EDUCATION FUNDING AGENCY,10/11/2014,Grants,Academies general,Current grants paid to organisations including arms length bodies and educational establishments,Miltoncross Academy,PAYBACSAUTO      195906,24118.00
Department for Education,EDUCATION FUNDING AGENCY,10/11/2014,Grants,Academies general,Current grants paid to organisations including arms length bodies and educational establishments,Miltoncross Academy,PAYBACSAUTO      195906,360968.00
Department for Education,EDUCATION FUNDING AGENCY,10/11/2014,Grants,Academies general,Current grants paid to organisations including arms length bodies and educational establishments,Miltoncross Academy,PAYBACSAUTO      195906,10413.00
Department for Education,EDUCATION FUNDING AGENCY,10/11/2014,Grants,Academies general,Current grants paid to organisations including arms length bodies and educational establishments,Rochester Diocesan Multi Academy Tru,PAYBACSAUTO      195907,9995.00
Department for Education,EDUCATION FUNDING AGENCY,10/11/2014,Grants,Academies general,Current grants paid to organisations including arms length bodies and educational establishments,Rochester Diocesan Multi Academy Tru,PAYBACSAUTO      195907,40083.00
Department for Education,EDUCATION FUNDING AGENCY,10/11/2014,Grants,Academies general,Current grants paid to organisations including arms length bodies and educational establishments,Rochester Diocesan Multi Academy Tru,PAYBACSAUTO      195907,1539.00
Department for Education,EDUCATION FUNDING AGENCY,10/11/2014,Grants,Academies general,Current grants paid to organisations including arms length bodies and educational establishments,Diocese of Ely Multi Academy Trust,PAYBACSAUTO      195908,12493.00
Department for Education,EDUCATION FUNDING AGENCY,10/11/2014,Grants,Academies general,Current grants paid to organisations including arms length bodies and educational establishments,Diocese of Ely Multi Academy Trust,PAYBACSAUTO      195908,2380.00
Department for Education,EDUCATION FUNDING AGENCY,10/11/2014,Grants,Academies general,Current grants paid to organisations including arms length bodies and educational establishments,Diocese of Ely Multi Academy Trust,PAYBACSAUTO      195908,5551.00
Department for Education,EDUCATION FUNDING AGENCY,10/11/2014,Grants,Academies general,Current grants paid to organisations including arms length bodies and educational establishments,Diocese of Ely Multi Academy Trust,PAYBACSAUTO      195908,103005.00
Department for Education,EDUCATION FUNDING AGENCY,10/11/2014,Grants,Academies general,Current grants paid to organisations including arms length bodies and educational establishments,The Williamson Trust,PAYBACSAUTO      195909,9262.00
Department for Education,EDUCATION FUNDING AGENCY,10/11/2014,Grants,Academies general,Current grants paid to organisations including arms length bodies and educational establishments,The Williamson Trust,PAYBACSAUTO      195909,1005.00
Department for Education,EDUCATION FUNDING AGENCY,10/11/2014,Grants,Academies general,Current grants paid to organisations including arms length bodies and educational establishments,The Williamson Trust,PAYBACSAUTO      195909,27318.00
Department for Education,EDUCATION FUNDING AGENCY,10/11/2014,Grants,Academies general,Current grants paid to organisations including arms length bodies and educational establishments,The Williamson Trust,PAYBACSAUTO      195909,1264.00
Department for Education,EDUCATION FUNDING AGENCY,10/11/2014,Grants,Academies general,Current grants paid to organisations including arms length bodies and educational establishments,Diocese of Norwich Multi Academy Tru,PAYBACSAUTO      195910,-42335.00
Department for Education,EDUCATION FUNDING AGENCY,10/11/2014,Grants,Academies general,Current grants paid to organisations including arms length bodies and educational establishments,Diocese of Norwich Multi Academy Tru,PAYBACSAUTO      195910,1936.00
Department for Education,EDUCATION FUNDING AGENCY,10/11/2014,Grants,Academies general,Current grants paid to organisations including arms length bodies and educational establishments,Diocese of Norwich Multi Academy Tru,PAYBACSAUTO      195910,-8189.00
Department for Education,EDUCATION FUNDING AGENCY,10/11/2014,Grants,Academies general,Current grants paid to organisations including arms length bodies and educational establishments,Diocese of Norwich Multi Academy Tru,PAYBACSAUTO      195910,1937.00
Department for Education,EDUCATION FUNDING AGENCY,10/11/2014,Grants,Academies general,Current grants paid to organisations including arms length bodies and educational establishments,Diocese of Norwich Multi Academy Tru,PAYBACSAUTO      195910,-1937.00
Department for Education,EDUCATION FUNDING AGENCY,10/11/2014,Grants,Academies general,Current grants paid to organisations including arms length bodies and educational establishments,Diocese of Norwich Multi Academy Tru,PAYBACSAUTO      195910,42335.00
Department for Education,EDUCATION FUNDING AGENCY,10/11/2014,Grants,Academies general,Current grants paid to organisations including arms length bodies and educational establishments,Diocese of Norwich Multi Academy Tru,PAYBACSAUTO      195910,8189.00
Department for Education,EDUCATION FUNDING AGENCY,10/11/2014,Grants,Academies general,Current grants paid to organisations including arms length bodies and educational establishments,Diocese of Norwich Multi Academy Tru,PAYBACSAUTO      195910,42312.00
Department for Education,EDUCATION FUNDING AGENCY,10/11/2014,Grants,Academies general,Current grants paid to organisations including arms length bodies and educational establishments,Diocese of Norwich Multi Academy Tru,PAYBACSAUTO      195910,8185.00
Department for Education,EDUCATION FUNDING AGENCY,10/11/2014,Grants,Academies general,Current grants paid to organisations including arms length bodies and educational establishments,Avocet Academy Trust,PAYBACSAUTO      195911,1889.00
Department for Education,EDUCATION FUNDING AGENCY,10/11/2014,Grants,Academies general,Current grants paid to organisations including arms length bodies and educational establishments,Avocet Academy Trust,PAYBACSAUTO      195911,9495.00
Department for Education,EDUCATION FUNDING AGENCY,10/11/2014,Grants,Academies general,Current grants paid to organisations including arms length bodies and educational establishments,Avocet Academy Trust,PAYBACSAUTO      195911,38825.00
Department for Education,EDUCATION FUNDING AGENCY,10/11/2014,Grants,Academies general,Current grants paid to organisations including arms length bodies and educational establishments,Avocet Academy Trust,PAYBACSAUTO      195911,2073.00
Department for Education,EDUCATION FUNDING AGENCY,10/11/2014,Grants,Academies general,Current grants paid to organisations including arms length bodies and educational establishments,Diocese of Ely Multi-Academy Trust,PAYBACSAUTO      195912,88.00
Department for Education,EDUCATION FUNDING AGENCY,10/11/2014,Grants,Academies general,Current grants paid to organisations including arms length bodies and educational establishments,Diocese of Ely Multi-Academy Trust,PAYBACSAUTO      195912,2659.00
Department for Education,EDUCATION FUNDING AGENCY,10/11/2014,Grants,Academies general,Current grants paid to organisations including arms length bodies and educational establishments,Diocese of Ely Multi-Academy Trust,PAYBACSAUTO      195912,12493.00
Department for Education,EDUCATION FUNDING AGENCY,10/11/2014,Grants,Academies general,Current grants paid to organisations including arms length bodies and educational establishments,Diocese of Ely Multi-Academy Trust,PAYBACSAUTO      195912,51610.00
Department for Education,EDUCATION FUNDING AGENCY,10/11/2014,Grants,Partnership for Schools Legacy,Current grants paid to organisations including arms length bodies and educational establishments,ELLACOMBE PRIMARY SCHOOL ACADEMY,357748,42280.70
Department for Education,EDUCATION FUNDING AGENCY,10/11/2014,Professional Services Consultancy and Contingent Labour,Priority Schools Building Programme Team,Costs related to temporary workers,CAPITA RESOURCING LTD,357752,32156.42
Department for Education,EDUCATION FUNDING AGENCY,10/11/2014,Professional Services Consultancy and Contingent Labour,Priority Schools Building Programme Team,Costs related to temporary workers,CAPITA RESOURCING LTD,357752,30057.84
Department for Education,EDUCATION FUNDING AGENCY,10/11/2014,Professional Services Consultancy and Contingent Labour,Programme Advice and Support Team,Costs related to temporary workers,CAPITA LTD,357754,12735.60
Department for Education,EDUCATION FUNDING AGENCY,10/11/2014,Professional Services Other,Programme Advice and Support Team,"Fees / expenses of professionals, for example to implement advice or changes",CAPITA LTD,357754,52084.85
Department for Education,EDUCATION FUNDING AGENCY,10/11/2014,Professional Services Other,Programme Advice and Support Team,"Fees / expenses of professionals, for example to implement advice or changes",AECOM (WAS DAVIS LANGDON LLP),357756,56565.12
Department for Education,EDUCATION FUNDING AGENCY,10/11/2014,Professional Services Consultancy and Contingent Labour,Free School Technical Advice,"Fees / expenses of professionals such as auditors, accountants, lawyers, etc. engaged to provide advice or opinion on how to affect something",GARDINER & THEOBALD LLP,357760,29568.00
Department for Education,EDUCATION FUNDING AGENCY,10/11/2014,Professional Services Other,Free School Advice,"Fees / expenses of professionals, for example to implement advice or changes",TROWERS & HAMLINS LLP,357764,10200.00
Department for Education,EDUCATION FUNDING AGENCY,10/11/2014,Professional Services Other,Free School Advice,"Fees / expenses of professionals, for example to implement advice or changes",TROWERS & HAMLINS LLP,357764,29581.91
Department for Education,EDUCATION FUNDING AGENCY,10/11/2014,Professional Services Other,University Technology Colleges,"Fees / expenses of professionals, for example to implement advice or changes",TROWERS & HAMLINS LLP,357764,2398.80
Department for Education,EDUCATION FUNDING AGENCY,10/11/2014,Professional Services Consultancy and Contingent Labour,Central Administrative Team,"Fees / expenses of professionals such as auditors, accountants, lawyers, etc. engaged to provide advice or opinion on how to affect something",JACOBS,357770,36166.79
Department for Education,EDUCATION FUNDING AGENCY,10/11/2014,Professional Services Consultancy and Contingent Labour,Central Administrative Team,"Fees / expenses of professionals such as auditors, accountants, lawyers, etc. engaged to provide advice or opinion on how to affect something",LIBERATA UK LTD,357776,32124.00
Department for Education,EDUCATION FUNDING AGENCY,10/11/2014,Professional Services Other,Free School Technical Advice,"Fees / expenses of professionals, for example to implement advice or changes",TURNER & TOWNSEND,357778,185505.24
Department for Education,EDUCATION FUNDING AGENCY,10/11/2014,Grants,Partnership for Schools Legacy,Grants to local authorities / other establishments within aggregate external funding or aggregate exchequer grant,LICHFIELD DIOCESAN EDUCATION COUNCIL BARCHESTER,357782,27605.45
Department for Education,EDUCATION FUNDING AGENCY,10/11/2014,Grants,Partnership for Schools Legacy,Grants to local authorities / other establishments within aggregate external funding or aggregate exchequer grant,ST THOMAS NORE CATHOLIC BIRMINGHAM DIOCESE ACCOUNT,357786,87530.51
Department for Education,EDUCATION FUNDING AGENCY,10/11/2014,Grants,Studio Schools,Capital grants paid to local authorities and other educational establishments,DARWEN ALDRIDGE COMMUNITY ACADEMY,357794,53400.00
Department for Education,EDUCATION FUNDING AGENCY,10/11/2014,Grants,Studio Schools,Capital grants paid to local authorities and other educational establishments,DARWEN ALDRIDGE COMMUNITY ACADEMY,357794,118165.00
Department for Education,EDUCATION FUNDING AGENCY,10/11/2014,Grants,University Technology Colleges,Capital grants paid to local authorities and other educational establishments,BURNLEY BOROUGH COUNCIL GENERAL ACCOUNT,357796,115074.14
Department for Education,EDUCATION FUNDING AGENCY,10/11/2014,Grants,Free School Capital Costs,Capital grants paid to local authorities and other educational establishments,PERRY BEECHES THE ACADEMY,357800,8975.79
Department for Education,EDUCATION FUNDING AGENCY,10/11/2014,Grants,Free School Capital Costs,Capital grants paid to local authorities and other educational establishments,PERRY BEECHES THE ACADEMY,357800,46906.97
Department for Education,EDUCATION FUNDING AGENCY,10/11/2014,Grants,Free School Capital Costs,Capital grants paid to local authorities and other educational establishments,CHEADLE HULME HIGH SCHOOL,357804,100000.00
Department for Education,EDUCATION FUNDING AGENCY,10/11/2014,Grants,Free School Capital Costs,Capital grants paid to local authorities and other educational establishments,THE ARCHER ACADEMY,357806,688859.08
Department for Education,EDUCATION FUNDING AGENCY,10/11/2014,Grants,Free School Capital Costs,Capital grants paid to local authorities and other educational establishments,PLYMOUTH SCHOOL OF CREATIVE ARTS - BUILDING,357812,853008.95
Department for Education,EDUCATION FUNDING AGENCY,10/11/2014,Grants,Free School Capital Costs,Capital grants paid to local authorities and other educational establishments,PLYMOUTH SCHOOL OF CREATIVE ARTS - BUILDING,357812,22739.00
Department for Education,EDUCATION FUNDING AGENCY,10/11/2014,Grants,Free School Capital Costs,Capital grants paid to local authorities and other educational establishments,THE UNIVERSITY OF BIRMINGHAM SCHOOL,357816,836722.00
Department for Education,EDUCATION FUNDING AGENCY,10/11/2014,Grants,University Technology Colleges,Capital grants paid to local authorities and other educational establishments,BURTON AND SOUTH BERBYSHIRE UTC,357818,279260.38
Department for Education,EDUCATION FUNDING AGENCY,10/11/2014,Grants,University Technology Colleges,Capital grants paid to local authorities and other educational establishments,HEATHROW AVIATION ENGINEERING UTC,357820,537854.98
Department for Education,EDUCATION FUNDING AGENCY,10/11/2014,Grants,University Technology Colleges,Capital grants paid to local authorities and other educational establishments,HEATHROW AVIATION ENGINEERING UTC,357820,26228.70
Department for Education,EDUCATION FUNDING AGENCY,10/11/2014,Grants,University Technology Colleges,Capital grants paid to local authorities and other educational establishments,HEATHROW AVIATION ENGINEERING UTC,357820,58611.30
Department for Education,EDUCATION FUNDING AGENCY,10/11/2014,Grants,Studio Schools,Capital grants paid to local authorities and other educational establishments,STUDIO WEST STUDIO SCHOOL,357822,91928.20
Department for Education,EDUCATION FUNDING AGENCY,10/11/2014,Grants,Studio Schools,Capital grants paid to local authorities and other educational establishments,STUDIO WEST STUDIO SCHOOL,357822,289.00
Department for Education,EDUCATION FUNDING AGENCY,10/11/2014,Grants,Studio Schools,Capital grants paid to local authorities and other educational establishments,STUDIO WEST STUDIO SCHOOL,357822,4729.00
Department for Education,EDUCATION FUNDING AGENCY,10/11/2014,Grants,Free School Capital Costs,Capital grants paid to local authorities and other educational establishments,CUL ACADEMY TRUST,357824,87295.82
Department for Education,EDUCATION FUNDING AGENCY,10/11/2014,Grants,Free School Capital Costs,Capital grants paid to local authorities and other educational establishments,FULHAM BOYS SCHOOL LIMITED,357828,36332.10
Department for Education,EDUCATION FUNDING AGENCY,10/11/2014,Grants,Free School Capital Costs,Capital grants paid to local authorities and other educational establishments,XP SCHOOL DONCASTER LTD,357832,44649.30
Department for Education,EDUCATION FUNDING AGENCY,10/11/2014,Grants,Free School Capital Costs,Capital grants paid to local authorities and other educational establishments,FALCONS PRIMARY SCHOOL,357834,164289.10
Department for Education,EDUCATION FUNDING AGENCY,10/11/2014,Grants,Free School Capital Costs,Capital grants paid to local authorities and other educational establishments,PAXTON ACADEMY SPORTS AND SCIENCE,357836,98430.42
Department for Education,EDUCATION FUNDING AGENCY,10/11/2014,Grants,University Technology Colleges,Capital grants paid to local authorities and other educational establishments,SOUTH WILTSHIRE UTC,357838,585054.53
Department for Education,EDUCATION FUNDING AGENCY,10/11/2014,Grants,University Technology Colleges,Capital grants paid to local authorities and other educational establishments,SCIENCE UTC OXFORDSHIRE TRUST,357840,291268.28
Department for Education,EDUCATION FUNDING AGENCY,10/11/2014,Grants,Partnership for Schools Legacy,Capital grants paid to local authorities and other educational establishments,HOLY FAMILY RC SCHOOL,357842,61094.84
Department for Education,EDUCATION FUNDING AGENCY,11/11/2014,Grants,Partnership for Schools Legacy,Capital grants paid to local authorities and other educational establishments,ROMAN CATHOLIC DIOCESE OF ARUNDEL AND BRIGHTON ST JOSEPH'S SCHOOL GOVERNORS,358370,87750.00
Department for Education,EDUCATION FUNDING AGENCY,11/11/2014,Grants,Partnership for Schools Legacy,Capital grants paid to local authorities and other educational establishments,ARUNDEL AND BRIGHTON - ST JOHN THE BAPTIST SCHOOL GOVERNO,358372,28890.00
Department for Education,EDUCATION FUNDING AGENCY,11/11/2014,Grants,Partnership for Schools Legacy,Capital grants paid to local authorities and other educational establishments,KENT COUNTY COUNCIL THE JUDD SCHOOL,358374,27028.72
Department for Education,EDUCATION FUNDING AGENCY,11/11/2014,Grants,Partnership for Schools Legacy,Capital grants paid to local authorities and other educational establishments,ST ANGELAS URSULINE CONVENT SCHOOL GOVERNMENT FUND,358376,79977.83
Department for Education,EDUCATION FUNDING AGENCY,11/11/2014,Grants,Partnership for Schools Legacy,Capital grants paid to local authorities and other educational establishments,ST JOHN THE BAPTIST CHURCH COMPREHENSIVE SCHOOL,358380,33212.70
Department for Education,EDUCATION FUNDING AGENCY,11/11/2014,Grants,Partnership for Schools Legacy,Capital grants paid to local authorities and other educational establishments,PRESTON MUSLIM GIRLS HIGH SCHOOL,358384,27294.71
Department for Education,EDUCATION FUNDING AGENCY,11/11/2014,Grants,Free School Capital Costs,Capital grants paid to local authorities and other educational establishments,THE WEST LONDON SECONDARY SCHOOL,358386,207342.85
Department for Education,EDUCATION FUNDING AGENCY,11/11/2014,Grants,Free School Capital Costs,Capital grants paid to local authorities and other educational establishments,ARK ATWOOD SCHOOL,358388,58850.00
Department for Education,EDUCATION FUNDING AGENCY,11/11/2014,Grants,Free School Capital Costs,Capital grants paid to local authorities and other educational establishments,FUTURE SCHOOLS TRUST  NEW LINE LEARNING,358390,340636.28
Department for Education,EDUCATION FUNDING AGENCY,11/11/2014,Grants,Free School Capital Costs,Capital grants paid to local authorities and other educational establishments,RIMON JEWISH PRIMARY SCHOOL ACCOUNT,358392,69460.54
Department for Education,EDUCATION FUNDING AGENCY,11/11/2014,Grants,Free School Capital Costs,Capital grants paid to local authorities and other educational establishments,SANDYMOOR FREE SCHOOL,358394,10043.06
Department for Education,EDUCATION FUNDING AGENCY,11/11/2014,Grants,Free School Capital Costs,Capital grants paid to local authorities and other educational establishments,SANDYMOOR FREE SCHOOL,358394,111865.00
Department for Education,EDUCATION FUNDING AGENCY,11/11/2014,Grants,Free School Capital Costs,Capital grants paid to local authorities and other educational establishments,GREAT SCHOOLS FOR ALL CHILDREN,358396,741884.47
Department for Education,EDUCATION FUNDING AGENCY,11/11/2014,Grants,Partnership for Schools Legacy,Grants to local authorities / other establishments within aggregate external funding or aggregate exchequer grant,NCC RE ST LUKES CE PRIMARY SCHOOL ACCOUNT,358400,104587.00
Department for Education,EDUCATION FUNDING AGENCY,11/11/2014,Grants,Studio Schools,Capital grants paid to local authorities and other educational establishments,DORSET STUDIO SCHOOL,358414,192105.64
Department for Education,EDUCATION FUNDING AGENCY,11/11/2014,Grants,Studio Schools,Capital grants paid to local authorities and other educational establishments,SPACE STUDIO SCHOOL,358416,32200.96
Department for Education,EDUCATION FUNDING AGENCY,11/11/2014,Grants,Studio Schools,Capital grants paid to local authorities and other educational establishments,SPACE STUDIO SCHOOL,358416,80805.70
Department for Education,EDUCATION FUNDING AGENCY,11/11/2014,Grants,University Technology Colleges,Capital grants paid to local authorities and other educational establishments,DERBY MANUFACTURING UTC,358418,315663.88
Department for Education,EDUCATION FUNDING AGENCY,11/11/2014,Grants,Studio Schools,Capital grants paid to local authorities and other educational establishments,APOLLO SCHOOLS TRUST,358420,146476.83
Department for Education,EDUCATION FUNDING AGENCY,11/11/2014,Grants,Studio Schools,Capital grants paid to local authorities and other educational establishments,APOLLO SCHOOLS TRUST,358420,8870.00
Department for Education,EDUCATION FUNDING AGENCY,11/11/2014,Grants,Free School Capital Costs,Capital grants paid to local authorities and other educational establishments,DITTON PARK ACADEMY,358424,216379.60
Department for Education,EDUCATION FUNDING AGENCY,11/11/2014,Grants,Free School Capital Costs,Capital grants paid to local authorities and other educational establishments,DITTON PARK ACADEMY,358424,2662.50
Department for Education,EDUCATION FUNDING AGENCY,11/11/2014,Grants,Free School Capital Costs,Capital grants paid to local authorities and other educational establishments,STEINER ACADEMY BRISTOL,358426,56994.55
Department for Education,EDUCATION FUNDING AGENCY,11/11/2014,Grants,Free School Capital Costs,Capital grants paid to local authorities and other educational establishments,STEINER ACADEMY BRISTOL,358426,28635.33
Department for Education,EDUCATION FUNDING AGENCY,11/11/2014,Grants,Free School Capital Costs,Capital grants paid to local authorities and other educational establishments,STEINER ACADEMY BRISTOL,358426,20315.47
Department for Education,EDUCATION FUNDING AGENCY,11/11/2014,Grants,University Technology Colleges,Capital grants paid to local authorities and other educational establishments,NEWHAVEN UTC,358428,1046860.69
Department for Education,EDUCATION FUNDING AGENCY,11/11/2014,Grants,Free School Capital Costs,Capital grants paid to local authorities and other educational establishments,EDEN BESD SCHOOL,358430,57345.57
Department for Education,EDUCATION FUNDING AGENCY,11/11/2014,Grants,University Technology Colleges,Capital grants paid to local authorities and other educational establishments,MEDWAY UTC,358432,1051887.40
Department for Education,EDUCATION FUNDING AGENCY,12/11/2014,Grants,Young People's Funding,Grants to third sector organisations / not for profit organisations and other businesses,CAPITA BUSINESS SERVICES LTD,PAYBACSAUTO      195917,12337.55
Department for Education,EDUCATION FUNDING AGENCY,12/11/2014,Grants,Young People's Funding,Grants to third sector organisations / not for profit organisations and other businesses,CAPITA BUSINESS SERVICES LTD,PAYBACSAUTO      195917,159551.30
Department for Education,EDUCATION FUNDING AGENCY,12/11/2014,Grants,Young People's Funding,Grants to third sector organisations / not for profit organisations and other businesses,CAPITA BUSINESS SERVICES LTD,PAYBACSAUTO      195917,1514743.00
Department for Education,EDUCATION FUNDING AGENCY,12/11/2014,Grants,Young People's Funding,Grants to third sector organisations / not for profit organisations and other businesses,CAPITA BUSINESS SERVICES LTD,PAYBACSAUTO      195917,8404.44
Department for Education,EDUCATION FUNDING AGENCY,12/11/2014,Professional Services Other,Free School Technical Advice,"Fees / expenses of professionals, for example to implement advice or changes",GARDINER & THEOBALD LLP,358436,47336.20
Department for Education,EDUCATION FUNDING AGENCY,12/11/2014,Professional Services Consultancy and Contingent Labour,Priority Schools Building Programme Team,"Fees / expenses of professionals such as auditors, accountants, lawyers, etc. engaged to provide advice or opinion on how to affect something",GATENBY SANDERSON,358438,15565.44
Department for Education,EDUCATION FUNDING AGENCY,12/11/2014,Professional Services Consultancy and Contingent Labour,Priority Schools Building Programme Team,"Fees / expenses of professionals such as auditors, accountants, lawyers, etc. engaged to provide advice or opinion on how to affect something",GATENBY SANDERSON,358438,16310.16
Department for Education,EDUCATION FUNDING AGENCY,12/11/2014,Professional Services Consultancy and Contingent Labour,Studio Schools,"Fees / expenses of professionals such as auditors, accountants, lawyers, etc. engaged to provide advice or opinion on how to affect something",MOTT MACDONALD,358446,508.80
Department for Education,EDUCATION FUNDING AGENCY,12/11/2014,Professional Services Other,Priority Schools Building Programme Team,"Fees / expenses of professionals, for example to implement advice or changes",MOTT MACDONALD,358446,14000.40
Department for Education,EDUCATION FUNDING AGENCY,12/11/2014,Professional Services Other,Priority Schools Building Programme Team,"Fees / expenses of professionals, for example to implement advice or changes",MOTT MACDONALD,358446,23511.29
Department for Education,EDUCATION FUNDING AGENCY,12/11/2014,Professional Services Consultancy and Contingent Labour,Studio Schools,"Fees / expenses of professionals such as auditors, accountants, lawyers, etc. engaged to provide advice or opinion on how to affect something",MOTT MACDONALD,358446,4647.60
Department for Education,EDUCATION FUNDING AGENCY,12/11/2014,Professional Services Consultancy and Contingent Labour,University Technology Colleges,"Fees / expenses of professionals such as auditors, accountants, lawyers, etc. engaged to provide advice or opinion on how to affect something",MOTT MACDONALD,358446,150040.00
Department for Education,EDUCATION FUNDING AGENCY,12/11/2014,Professional Services Other,Free School Property Advice,"Fees / expenses of professionals, for example to implement advice or changes",DTZ RE: NATIONAL COMMON RECEIPTS,358448,145596.46
Department for Education,EDUCATION FUNDING AGENCY,12/11/2014,Professional Services Other,Studio Schools,"Fees / expenses of professionals, for example to implement advice or changes",DTZ RE: NATIONAL COMMON RECEIPTS,358448,912.26
Department for Education,EDUCATION FUNDING AGENCY,12/11/2014,Professional Services Other,University Technology Colleges,"Fees / expenses of professionals, for example to implement advice or changes",DTZ RE: NATIONAL COMMON RECEIPTS,358448,806.44
Department for Education,EDUCATION FUNDING AGENCY,12/11/2014,Grants,Priority Schools Building Programme Team,Capital grants paid to local authorities and other educational establishments,BAM CONSTRUCTION LTD,358454,512746.66
Department for Education,EDUCATION FUNDING AGENCY,12/11/2014,Grants,Priority Schools Building Programme Team,Capital grants paid to local authorities and other educational establishments,SIR ROBERT MCALPINE LTD,358456,844143.55
Department for Education,EDUCATION FUNDING AGENCY,12/11/2014,Professional Services Consultancy and Contingent Labour,Free School Technical Advice,"Fees / expenses of professionals such as auditors, accountants, lawyers, etc. engaged to provide advice or opinion on how to affect something",TURNER & TOWNSEND,358464,160206.48
Department for Education,EDUCATION FUNDING AGENCY,12/11/2014,Professional Services Consultancy and Contingent Labour,Free School Technical Advice,"Fees / expenses of professionals such as auditors, accountants, lawyers, etc. engaged to provide advice or opinion on how to affect something",TURNER & TOWNSEND,358464,21173.16
Department for Education,EDUCATION FUNDING AGENCY,12/11/2014,Professional Services Other,Free School Technical Advice,"Fees / expenses of professionals, for example to implement advice or changes",TURNER & TOWNSEND,358464,45435.60
Department for Education,EDUCATION FUNDING AGENCY,12/11/2014,Professional Services Consultancy and Contingent Labour,University Technology Colleges,"Fees / expenses of professionals such as auditors, accountants, lawyers, etc. engaged to provide advice or opinion on how to affect something",TURNER & TOWNSEND,358464,9085.98
Department for Education,EDUCATION FUNDING AGENCY,13/11/2014,Grants,Financial Funding and Corporate Services,Grants to local authorities / other establishments within aggregate external funding or aggregate exchequer grant,BARNSLEY METRO BOROUGH COUNCIL,PAYBACSAUTO      196010,55833.00
Department for Education,EDUCATION FUNDING AGENCY,13/11/2014,Grants,Financial Funding and Corporate Services,Current grants to local authorities,BARNSLEY METRO BOROUGH COUNCIL,PAYBACSAUTO      196010,4723.00
Department for Education,EDUCATION FUNDING AGENCY,13/11/2014,Grants,Financial Funding and Corporate Services,Grants to local authorities / other establishments within aggregate external funding or aggregate exchequer grant,BARNSLEY METRO BOROUGH COUNCIL,PAYBACSAUTO      196010,82474.00
Department for Education,EDUCATION FUNDING AGENCY,13/11/2014,Grants,Financial Funding and Corporate Services,Current grants to local authorities,BARNSLEY METRO BOROUGH COUNCIL,PAYBACSAUTO      196010,1335.00
Department for Education,EDUCATION FUNDING AGENCY,13/11/2014,Grants,Financial Funding and Corporate Services,Grants to local authorities / other establishments within aggregate external funding or aggregate exchequer grant,BATH & NORTH EAST SOMERSET COUNCIL,PAYBACSAUTO      196011,5128.00
Department for Education,EDUCATION FUNDING AGENCY,13/11/2014,Grants,Financial Funding and Corporate Services,Grants to local authorities / other establishments within aggregate external funding or aggregate exchequer grant,BATH & NORTH EAST SOMERSET COUNCIL,PAYBACSAUTO      196011,2559.00
Department for Education,EDUCATION FUNDING AGENCY,13/11/2014,Grants,Financial Funding and Corporate Services,Grants to local authorities / other establishments within aggregate external funding or aggregate exchequer grant,BATH & NORTH EAST SOMERSET COUNCIL,PAYBACSAUTO      196011,2000.00
Department for Education,EDUCATION FUNDING AGENCY,13/11/2014,Grants,Financial Funding and Corporate Services,Grants to local authorities / other establishments within aggregate external funding or aggregate exchequer grant,BATH & NORTH EAST SOMERSET COUNCIL,PAYBACSAUTO      196011,48502.00
Department for Education,EDUCATION FUNDING AGENCY,13/11/2014,Grants,Financial Funding and Corporate Services,Grants to local authorities / other establishments within aggregate external funding or aggregate exchequer grant,BATH & NORTH EAST SOMERSET COUNCIL,PAYBACSAUTO      196011,62799.00
Department for Education,EDUCATION FUNDING AGENCY,13/11/2014,Grants,Financial Funding and Corporate Services,Current grants to local authorities,BATH & NORTH EAST SOMERSET COUNCIL,PAYBACSAUTO      196011,1200.00
Department for Education,EDUCATION FUNDING AGENCY,13/11/2014,Grants,Financial Funding and Corporate Services,Grants to local authorities / other establishments within aggregate external funding or aggregate exchequer grant,BEDFORD UNITARY AUTHORITY,PAYBACSAUTO      196012,100516.00
Department for Education,EDUCATION FUNDING AGENCY,13/11/2014,Grants,Financial Funding and Corporate Services,Grants to local authorities / other establishments within aggregate external funding or aggregate exchequer grant,BEDFORD UNITARY AUTHORITY,PAYBACSAUTO      196012,3693.00
Department for Education,EDUCATION FUNDING AGENCY,13/11/2014,Grants,Financial Funding and Corporate Services,Grants to local authorities / other establishments within aggregate external funding or aggregate exchequer grant,BEDFORD UNITARY AUTHORITY,PAYBACSAUTO      196012,1000.00
Department for Education,EDUCATION FUNDING AGENCY,13/11/2014,Grants,Financial Funding and Corporate Services,Grants to local authorities / other establishments within aggregate external funding or aggregate exchequer grant,BEDFORD UNITARY AUTHORITY,PAYBACSAUTO      196012,10833.00
Department for Education,EDUCATION FUNDING AGENCY,13/11/2014,Grants,Financial Funding and Corporate Services,Grants to local authorities / other establishments within aggregate external funding or aggregate exchequer grant,BEDFORD UNITARY AUTHORITY,PAYBACSAUTO      196012,71664.00
Department for Education,EDUCATION FUNDING AGENCY,13/11/2014,Grants,Financial Funding and Corporate Services,Grants to local authorities / other establishments within aggregate external funding or aggregate exchequer grant,WEST BERKSHIRE COUNCIL,PAYBACSAUTO      196013,112976.00
Department for Education,EDUCATION FUNDING AGENCY,13/11/2014,Grants,Financial Funding and Corporate Services,Grants to local authorities / other establishments within aggregate external funding or aggregate exchequer grant,WEST BERKSHIRE COUNCIL,PAYBACSAUTO      196013,28333.00
Department for Education,EDUCATION FUNDING AGENCY,13/11/2014,Grants,Financial Funding and Corporate Services,Grants to local authorities / other establishments within aggregate external funding or aggregate exchequer grant,WEST BERKSHIRE COUNCIL,PAYBACSAUTO      196013,500.00
Department for Education,EDUCATION FUNDING AGENCY,13/11/2014,Grants,Financial Funding and Corporate Services,Grants to local authorities / other establishments within aggregate external funding or aggregate exchequer grant,WEST BERKSHIRE COUNCIL,PAYBACSAUTO      196013,129345.00
Department for Education,EDUCATION FUNDING AGENCY,13/11/2014,Grants,Financial Funding and Corporate Services,Grants to local authorities / other establishments within aggregate external funding or aggregate exchequer grant,WEST BERKSHIRE COUNCIL,PAYBACSAUTO      196013,1439.00
Department for Education,EDUCATION FUNDING AGENCY,13/11/2014,Grants,Financial Funding and Corporate Services,Grants to local authorities / other establishments within aggregate external funding or aggregate exchequer grant,WEST BERKSHIRE COUNCIL,PAYBACSAUTO      196013,19475.00
Department for Education,EDUCATION FUNDING AGENCY,13/11/2014,Grants,Financial Funding and Corporate Services,Grants to local authorities / other establishments within aggregate external funding or aggregate exchequer grant,WEST BERKSHIRE COUNCIL,PAYBACSAUTO      196013,281.00
Department for Education,EDUCATION FUNDING AGENCY,13/11/2014,Grants,Financial Funding and Corporate Services,Grants to local authorities / other establishments within aggregate external funding or aggregate exchequer grant,WEST BERKSHIRE COUNCIL,PAYBACSAUTO      196013,61299.00
Department for Education,EDUCATION FUNDING AGENCY,13/11/2014,Grants,Financial Funding and Corporate Services,Grants to local authorities / other establishments within aggregate external funding or aggregate exchequer grant,WEST BERKSHIRE COUNCIL,PAYBACSAUTO      196013,2500.00
Department for Education,EDUCATION FUNDING AGENCY,13/11/2014,Grants,Financial Funding and Corporate Services,Grants to local authorities / other establishments within aggregate external funding or aggregate exchequer grant,WEST BERKSHIRE COUNCIL,PAYBACSAUTO      196013,1000.00
Department for Education,EDUCATION FUNDING AGENCY,13/11/2014,Grants,Financial Funding and Corporate Services,Grants to local authorities / other establishments within aggregate external funding or aggregate exchequer grant,WEST BERKSHIRE COUNCIL,PAYBACSAUTO      196013,7056.00
Department for Education,EDUCATION FUNDING AGENCY,13/11/2014,Grants,Financial Funding and Corporate Services,Grants to local authorities / other establishments within aggregate external funding or aggregate exchequer grant,WEST BERKSHIRE COUNCIL,PAYBACSAUTO      196013,37500.00
Department for Education,EDUCATION FUNDING AGENCY,13/11/2014,Grants,Financial Funding and Corporate Services,Grants to local authorities / other establishments within aggregate external funding or aggregate exchequer grant,WEST BERKSHIRE COUNCIL,PAYBACSAUTO      196013,2049.00
Department for Education,EDUCATION FUNDING AGENCY,13/11/2014,Grants,Financial Funding and Corporate Services,Grants to local authorities / other establishments within aggregate external funding or aggregate exchequer grant,WEST BERKSHIRE COUNCIL,PAYBACSAUTO      196013,761.00
Department for Education,EDUCATION FUNDING AGENCY,13/11/2014,Grants,Financial Funding and Corporate Services,Grants to local authorities / other establishments within aggregate external funding or aggregate exchequer grant,WEST BERKSHIRE COUNCIL,PAYBACSAUTO      196013,4525.00
Department for Education,EDUCATION FUNDING AGENCY,13/11/2014,Grants,Financial Funding and Corporate Services,Current grants to local authorities,BIRMINGHAM CITY COUNCIL,PAYBACSAUTO      196014,27192.00
Department for Education,EDUCATION FUNDING AGENCY,13/11/2014,Grants,Financial Funding and Corporate Services,Grants to local authorities / other establishments within aggregate external funding or aggregate exchequer grant,BIRMINGHAM CITY COUNCIL,PAYBACSAUTO      196014,1292.00
Department for Education,EDUCATION FUNDING AGENCY,13/11/2014,Grants,Financial Funding and Corporate Services,Grants to local authorities / other establishments within aggregate external funding or aggregate exchequer grant,BIRMINGHAM CITY COUNCIL,PAYBACSAUTO      196014,4657.00
Department for Education,EDUCATION FUNDING AGENCY,13/11/2014,Grants,Financial Funding and Corporate Services,Grants to local authorities / other establishments within aggregate external funding or aggregate exchequer grant,BIRMINGHAM CITY COUNCIL,PAYBACSAUTO      196014,14662.00
Department for Education,EDUCATION FUNDING AGENCY,13/11/2014,Grants,Financial Funding and Corporate Services,Grants to local authorities / other establishments within aggregate external funding or aggregate exchequer grant,BIRMINGHAM CITY COUNCIL,PAYBACSAUTO      196014,25000.00
Department for Education,EDUCATION FUNDING AGENCY,13/11/2014,Grants,Financial Funding and Corporate Services,Grants to local authorities / other establishments within aggregate external funding or aggregate exchequer grant,BIRMINGHAM CITY COUNCIL,PAYBACSAUTO      196014,86709.00
Department for Education,EDUCATION FUNDING AGENCY,13/11/2014,Grants,Financial Funding and Corporate Services,Grants to local authorities / other establishments within aggregate external funding or aggregate exchequer grant,BIRMINGHAM CITY COUNCIL,PAYBACSAUTO      196014,78890.00
Department for Education,EDUCATION FUNDING AGENCY,13/11/2014,Grants,Financial Funding and Corporate Services,Grants to local authorities / other establishments within aggregate external funding or aggregate exchequer grant,BIRMINGHAM CITY COUNCIL,PAYBACSAUTO      196014,2513.00
Department for Education,EDUCATION FUNDING AGENCY,13/11/2014,Grants,Financial Funding and Corporate Services,Grants to local authorities / other establishments within aggregate external funding or aggregate exchequer grant,BIRMINGHAM CITY COUNCIL,PAYBACSAUTO      196014,63002.00
Department for Education,EDUCATION FUNDING AGENCY,13/11/2014,Grants,Financial Funding and Corporate Services,Grants to local authorities / other establishments within aggregate external funding or aggregate exchequer grant,BIRMINGHAM CITY COUNCIL,PAYBACSAUTO      196014,90801.00
Department for Education,EDUCATION FUNDING AGENCY,13/11/2014,Grants,Financial Funding and Corporate Services,Grants to local authorities / other establishments within aggregate external funding or aggregate exchequer grant,BIRMINGHAM CITY COUNCIL,PAYBACSAUTO      196014,116779.00
Department for Education,EDUCATION FUNDING AGENCY,13/11/2014,Grants,Financial Funding and Corporate Services,Grants to local authorities / other establishments within aggregate external funding or aggregate exchequer grant,BIRMINGHAM CITY COUNCIL,PAYBACSAUTO      196014,4494.00
Department for Education,EDUCATION FUNDING AGENCY,13/11/2014,Grants,Financial Funding and Corporate Services,Grants to local authorities / other establishments within aggregate external funding or aggregate exchequer grant,BIRMINGHAM CITY COUNCIL,PAYBACSAUTO      196014,72366.00
Department for Education,EDUCATION FUNDING AGENCY,13/11/2014,Grants,Financial Funding and Corporate Services,Grants to local authorities / other establishments within aggregate external funding or aggregate exchequer grant,BIRMINGHAM CITY COUNCIL,PAYBACSAUTO      196014,32668.00
Department for Education,EDUCATION FUNDING AGENCY,13/11/2014,Grants,Financial Funding and Corporate Services,Current grants to local authorities,BIRMINGHAM CITY COUNCIL,PAYBACSAUTO      196014,16963.00
Department for Education,EDUCATION FUNDING AGENCY,13/11/2014,Grants,Financial Funding and Corporate Services,Grants to local authorities / other establishments within aggregate external funding or aggregate exchequer grant,BIRMINGHAM CITY COUNCIL,PAYBACSAUTO      196014,55417.00
Department for Education,EDUCATION FUNDING AGENCY,13/11/2014,Grants,Financial Funding and Corporate Services,Grants to local authorities / other establishments within aggregate external funding or aggregate exchequer grant,BIRMINGHAM CITY COUNCIL,PAYBACSAUTO      196014,20527.00
Department for Education,EDUCATION FUNDING AGENCY,13/11/2014,Grants,Financial Funding and Corporate Services,Grants to local authorities / other establishments within aggregate external funding or aggregate exchequer grant,BIRMINGHAM CITY COUNCIL,PAYBACSAUTO      196014,611.00
Department for Education,EDUCATION FUNDING AGENCY,13/11/2014,Grants,Financial Funding and Corporate Services,Grants to local authorities / other establishments within aggregate external funding or aggregate exchequer grant,BIRMINGHAM CITY COUNCIL,PAYBACSAUTO      196014,44167.00
Department for Education,EDUCATION FUNDING AGENCY,13/11/2014,Grants,Financial Funding and Corporate Services,Grants to local authorities / other establishments within aggregate external funding or aggregate exchequer grant,BIRMINGHAM CITY COUNCIL,PAYBACSAUTO      196014,4230.00
Department for Education,EDUCATION FUNDING AGENCY,13/11/2014,Grants,Financial Funding and Corporate Services,Grants to local authorities / other establishments within aggregate external funding or aggregate exchequer grant,BIRMINGHAM CITY COUNCIL,PAYBACSAUTO      196014,96667.00
Department for Education,EDUCATION FUNDING AGENCY,13/11/2014,Grants,Financial Funding and Corporate Services,Grants to local authorities / other establishments within aggregate external funding or aggregate exchequer grant,BIRMINGHAM CITY COUNCIL,PAYBACSAUTO      196014,81892.00
Department for Education,EDUCATION FUNDING AGENCY,13/11/2014,Grants,Financial Funding and Corporate Services,Grants to local authorities / other establishments within aggregate external funding or aggregate exchequer grant,BIRMINGHAM CITY COUNCIL,PAYBACSAUTO      196014,198.00
Department for Education,EDUCATION FUNDING AGENCY,13/11/2014,Grants,Financial Funding and Corporate Services,Current grants to local authorities,BIRMINGHAM CITY COUNCIL,PAYBACSAUTO      196014,1563.00
Department for Education,EDUCATION FUNDING AGENCY,13/11/2014,Grants,Financial Funding and Corporate Services,Grants to local authorities / other establishments within aggregate external funding or aggregate exchequer grant,BIRMINGHAM CITY COUNCIL,PAYBACSAUTO      196014,4561.00
Department for Education,EDUCATION FUNDING AGENCY,13/11/2014,Grants,Financial Funding and Corporate Services,Grants to local authorities / other establishments within aggregate external funding or aggregate exchequer grant,BIRMINGHAM CITY COUNCIL,PAYBACSAUTO      196014,7500.00
Department for Education,EDUCATION FUNDING AGENCY,13/11/2014,Grants,Financial Funding and Corporate Services,Grants to local authorities / other establishments within aggregate external funding or aggregate exchequer grant,BIRMINGHAM CITY COUNCIL,PAYBACSAUTO      196014,50896.00
Department for Education,EDUCATION FUNDING AGENCY,13/11/2014,Grants,Financial Funding and Corporate Services,Grants to local authorities / other establishments within aggregate external funding or aggregate exchequer grant,BIRMINGHAM CITY COUNCIL,PAYBACSAUTO      196014,3667.00
Department for Education,EDUCATION FUNDING AGENCY,13/11/2014,Grants,Financial Funding and Corporate Services,Grants to local authorities / other establishments within aggregate external funding or aggregate exchequer grant,BIRMINGHAM CITY COUNCIL,PAYBACSAUTO      196014,10096.00
Department for Education,EDUCATION FUNDING AGENCY,13/11/2014,Grants,Financial Funding and Corporate Services,Grants to local authorities / other establishments within aggregate external funding or aggregate exchequer grant,BIRMINGHAM CITY COUNCIL,PAYBACSAUTO      196014,14167.00
Department for Education,EDUCATION FUNDING AGENCY,13/11/2014,Grants,Financial Funding and Corporate Services,Current grants to local authorities,BIRMINGHAM CITY COUNCIL,PAYBACSAUTO      196014,2367.00
Department for Education,EDUCATION FUNDING AGENCY,13/11/2014,Grants,Financial Funding and Corporate Services,Grants to local authorities / other establishments within aggregate external funding or aggregate exchequer grant,BIRMINGHAM CITY COUNCIL,PAYBACSAUTO      196014,48282.00
Department for Education,EDUCATION FUNDING AGENCY,13/11/2014,Grants,Financial Funding and Corporate Services,Grants to local authorities / other establishments within aggregate external funding or aggregate exchequer grant,BIRMINGHAM CITY COUNCIL,PAYBACSAUTO      196014,88037.00
Department for Education,EDUCATION FUNDING AGENCY,13/11/2014,Grants,Financial Funding and Corporate Services,Grants to local authorities / other establishments within aggregate external funding or aggregate exchequer grant,BIRMINGHAM CITY COUNCIL,PAYBACSAUTO      196014,1288.00
Department for Education,EDUCATION FUNDING AGENCY,13/11/2014,Grants,Financial Funding and Corporate Services,Grants to local authorities / other establishments within aggregate external funding or aggregate exchequer grant,BIRMINGHAM CITY COUNCIL,PAYBACSAUTO      196014,8026.00
Department for Education,EDUCATION FUNDING AGENCY,13/11/2014,Grants,Financial Funding and Corporate Services,Grants to local authorities / other establishments within aggregate external funding or aggregate exchequer grant,BIRMINGHAM CITY COUNCIL,PAYBACSAUTO      196014,4095.00
Department for Education,EDUCATION FUNDING AGENCY,13/11/2014,Grants,Financial Funding and Corporate Services,Grants to local authorities / other establishments within aggregate external funding or aggregate exchequer grant,BIRMINGHAM CITY COUNCIL,PAYBACSAUTO      196014,25000.00
Department for Education,EDUCATION FUNDING AGENCY,13/11/2014,Grants,Financial Funding and Corporate Services,Grants to local authorities / other establishments within aggregate external funding or aggregate exchequer grant,BIRMINGHAM CITY COUNCIL,PAYBACSAUTO      196014,50833.00
Department for Education,EDUCATION FUNDING AGENCY,13/11/2014,Grants,Financial Funding and Corporate Services,Grants to local authorities / other establishments within aggregate external funding or aggregate exchequer grant,BIRMINGHAM CITY COUNCIL,PAYBACSAUTO      196014,64427.00
Department for Education,EDUCATION FUNDING AGENCY,13/11/2014,Grants,Financial Funding and Corporate Services,Grants to local authorities / other establishments within aggregate external funding or aggregate exchequer grant,BIRMINGHAM CITY COUNCIL,PAYBACSAUTO      196014,35000.00
Department for Education,EDUCATION FUNDING AGENCY,13/11/2014,Grants,Financial Funding and Corporate Services,Grants to local authorities / other establishments within aggregate external funding or aggregate exchequer grant,BIRMINGHAM CITY COUNCIL,PAYBACSAUTO      196014,2257.00
Department for Education,EDUCATION FUNDING AGENCY,13/11/2014,Grants,Financial Funding and Corporate Services,Grants to local authorities / other establishments within aggregate external funding or aggregate exchequer grant,BIRMINGHAM CITY COUNCIL,PAYBACSAUTO      196014,533.00
Department for Education,EDUCATION FUNDING AGENCY,13/11/2014,Grants,Financial Funding and Corporate Services,Grants to local authorities / other establishments within aggregate external funding or aggregate exchequer grant,BIRMINGHAM CITY COUNCIL,PAYBACSAUTO      196014,3703.00
Department for Education,EDUCATION FUNDING AGENCY,13/11/2014,Grants,Financial Funding and Corporate Services,Grants to local authorities / other establishments within aggregate external funding or aggregate exchequer grant,BIRMINGHAM CITY COUNCIL,PAYBACSAUTO      196014,64225.00
Department for Education,EDUCATION FUNDING AGENCY,13/11/2014,Grants,Financial Funding and Corporate Services,Grants to local authorities / other establishments within aggregate external funding or aggregate exchequer grant,BIRMINGHAM CITY COUNCIL,PAYBACSAUTO      196014,72032.00
Department for Education,EDUCATION FUNDING AGENCY,13/11/2014,Grants,Financial Funding and Corporate Services,Grants to local authorities / other establishments within aggregate external funding or aggregate exchequer grant,BIRMINGHAM CITY COUNCIL,PAYBACSAUTO      196014,13333.00
Department for Education,EDUCATION FUNDING AGENCY,13/11/2014,Grants,Financial Funding and Corporate Services,Grants to local authorities / other establishments within aggregate external funding or aggregate exchequer grant,BIRMINGHAM CITY COUNCIL,PAYBACSAUTO      196014,26667.00
Department for Education,EDUCATION FUNDING AGENCY,13/11/2014,Grants,Financial Funding and Corporate Services,Grants to local authorities / other establishments within aggregate external funding or aggregate exchequer grant,BIRMINGHAM CITY COUNCIL,PAYBACSAUTO      196014,59557.00
Department for Education,EDUCATION FUNDING AGENCY,13/11/2014,Grants,Financial Funding and Corporate Services,Grants to local authorities / other establishments within aggregate external funding or aggregate exchequer grant,BIRMINGHAM CITY COUNCIL,PAYBACSAUTO      196014,7872.00
Department for Education,EDUCATION FUNDING AGENCY,13/11/2014,Grants,Financial Funding and Corporate Services,Grants to local authorities / other establishments within aggregate external funding or aggregate exchequer grant,BIRMINGHAM CITY COUNCIL,PAYBACSAUTO      196014,7482.00
Department for Education,EDUCATION FUNDING AGENCY,13/11/2014,Grants,Financial Funding and Corporate Services,Grants to local authorities / other establishments within aggregate external funding or aggregate exchequer grant,BLACKBURN WITH DARWEN BOROUGH COUNCI,PAYBACSAUTO      196015,62985.00
Department for Education,EDUCATION FUNDING AGENCY,13/11/2014,Grants,Financial Funding and Corporate Services,Grants to local authorities / other establishments within aggregate external funding or aggregate exchequer grant,BLACKBURN WITH DARWEN BOROUGH COUNCI,PAYBACSAUTO      196015,12036.00
Department for Education,EDUCATION FUNDING AGENCY,13/11/2014,Grants,Financial Funding and Corporate Services,Grants to local authorities / other establishments within aggregate external funding or aggregate exchequer grant,BLACKBURN WITH DARWEN BOROUGH COUNCI,PAYBACSAUTO      196015,5500.00
Department for Education,EDUCATION FUNDING AGENCY,13/11/2014,Grants,Financial Funding and Corporate Services,Grants to local authorities / other establishments within aggregate external funding or aggregate exchequer grant,BLACKBURN WITH DARWEN BOROUGH COUNCI,PAYBACSAUTO      196015,20000.00
Department for Education,EDUCATION FUNDING AGENCY,13/11/2014,Grants,Financial Funding and Corporate Services,Grants to local authorities / other establishments within aggregate external funding or aggregate exchequer grant,BLACKBURN WITH DARWEN BOROUGH COUNCI,PAYBACSAUTO      196015,3389.00
Department for Education,EDUCATION FUNDING AGENCY,13/11/2014,Grants,Financial Funding and Corporate Services,Grants to local authorities / other establishments within aggregate external funding or aggregate exchequer grant,BLACKPOOL BOROUGH COUNCIL,PAYBACSAUTO      196016,15000.00
Department for Education,EDUCATION FUNDING AGENCY,13/11/2014,Grants,Financial Funding and Corporate Services,Grants to local authorities / other establishments within aggregate external funding or aggregate exchequer grant,BLACKPOOL BOROUGH COUNCIL,PAYBACSAUTO      196016,10833.00
Department for Education,EDUCATION FUNDING AGENCY,13/11/2014,Grants,Financial Funding and Corporate Services,Grants to local authorities / other establishments within aggregate external funding or aggregate exchequer grant,BOLTON METRO BOROUGH COUNCIL,PAYBACSAUTO      196017,113769.00
Department for Education,EDUCATION FUNDING AGENCY,13/11/2014,Grants,Financial Funding and Corporate Services,Grants to local authorities / other establishments within aggregate external funding or aggregate exchequer grant,BOLTON METRO BOROUGH COUNCIL,PAYBACSAUTO      196017,45833.00
Department for Education,EDUCATION FUNDING AGENCY,13/11/2014,Grants,Financial Funding and Corporate Services,Grants to local authorities / other establishments within aggregate external funding or aggregate exchequer grant,BOLTON METRO BOROUGH COUNCIL,PAYBACSAUTO      196017,1081.00
Department for Education,EDUCATION FUNDING AGENCY,13/11/2014,Grants,Financial Funding and Corporate Services,Grants to local authorities / other establishments within aggregate external funding or aggregate exchequer grant,BOLTON METRO BOROUGH COUNCIL,PAYBACSAUTO      196017,2000.00
Department for Education,EDUCATION FUNDING AGENCY,13/11/2014,Grants,Financial Funding and Corporate Services,Grants to local authorities / other establishments within aggregate external funding or aggregate exchequer grant,BOLTON METRO BOROUGH COUNCIL,PAYBACSAUTO      196017,5000.00
Department for Education,EDUCATION FUNDING AGENCY,13/11/2014,Grants,Financial Funding and Corporate Services,Grants to local authorities / other establishments within aggregate external funding or aggregate exchequer grant,BOLTON METRO BOROUGH COUNCIL,PAYBACSAUTO      196017,132763.00
Department for Education,EDUCATION FUNDING AGENCY,13/11/2014,Grants,Financial Funding and Corporate Services,Grants to local authorities / other establishments within aggregate external funding or aggregate exchequer grant,BOLTON METRO BOROUGH COUNCIL,PAYBACSAUTO      196017,27500.00
Department for Education,EDUCATION FUNDING AGENCY,13/11/2014,Grants,Financial Funding and Corporate Services,Grants to local authorities / other establishments within aggregate external funding or aggregate exchequer grant,BOLTON METRO BOROUGH COUNCIL,PAYBACSAUTO      196017,5500.00
Department for Education,EDUCATION FUNDING AGENCY,13/11/2014,Grants,Financial Funding and Corporate Services,Grants to local authorities / other establishments within aggregate external funding or aggregate exchequer grant,BOLTON METRO BOROUGH COUNCIL,PAYBACSAUTO      196017,1311.00
Department for Education,EDUCATION FUNDING AGENCY,13/11/2014,Grants,Financial Funding and Corporate Services,Grants to local authorities / other establishments within aggregate external funding or aggregate exchequer grant,BOLTON METRO BOROUGH COUNCIL,PAYBACSAUTO      196017,1000.00
Department for Education,EDUCATION FUNDING AGENCY,13/11/2014,Grants,Financial Funding and Corporate Services,Grants to local authorities / other establishments within aggregate external funding or aggregate exchequer grant,BOLTON METRO BOROUGH COUNCIL,PAYBACSAUTO      196017,5514.00
Department for Education,EDUCATION FUNDING AGENCY,13/11/2014,Grants,Financial Funding and Corporate Services,Grants to local authorities / other establishments within aggregate external funding or aggregate exchequer grant,BOLTON METRO BOROUGH COUNCIL,PAYBACSAUTO      196017,105034.00
Department for Education,EDUCATION FUNDING AGENCY,13/11/2014,Grants,Financial Funding and Corporate Services,Grants to local authorities / other establishments within aggregate external funding or aggregate exchequer grant,BOLTON METRO BOROUGH COUNCIL,PAYBACSAUTO      196017,105877.00
Department for Education,EDUCATION FUNDING AGENCY,13/11/2014,Grants,Financial Funding and Corporate Services,Grants to local authorities / other establishments within aggregate external funding or aggregate exchequer grant,ROYAL BOROUGH OF KINGSTON UPON THAME,PAYBACSAUTO      196018,28333.00
Department for Education,EDUCATION FUNDING AGENCY,13/11/2014,Grants,Financial Funding and Corporate Services,Grants to local authorities / other establishments within aggregate external funding or aggregate exchequer grant,ROYAL BOROUGH OF KINGSTON UPON THAME,PAYBACSAUTO      196018,1283.00
Department for Education,EDUCATION FUNDING AGENCY,13/11/2014,Grants,Financial Funding and Corporate Services,Grants to local authorities / other establishments within aggregate external funding or aggregate exchequer grant,ROYAL BOROUGH OF KINGSTON UPON THAME,PAYBACSAUTO      196018,18365.00
Department for Education,EDUCATION FUNDING AGENCY,13/11/2014,Grants,Financial Funding and Corporate Services,Grants to local authorities / other establishments within aggregate external funding or aggregate exchequer grant,ROYAL BOROUGH OF KINGSTON UPON THAME,PAYBACSAUTO      196018,14167.00
Department for Education,EDUCATION FUNDING AGENCY,13/11/2014,Grants,Financial Funding and Corporate Services,Current grants to local authorities,ROYAL BOROUGH OF KINGSTON UPON THAME,PAYBACSAUTO      196018,3766.00
Department for Education,EDUCATION FUNDING AGENCY,13/11/2014,Grants,Financial Funding and Corporate Services,Current grants to local authorities,ROYAL BOROUGH OF KINGSTON UPON THAME,PAYBACSAUTO      196018,9719.00
Department for Education,EDUCATION FUNDING AGENCY,13/11/2014,Grants,Financial Funding and Corporate Services,Grants to local authorities / other establishments within aggregate external funding or aggregate exchequer grant,BOURNEMOUTH COUNCIL,PAYBACSAUTO      196019,32500.00
Department for Education,EDUCATION FUNDING AGENCY,13/11/2014,Grants,Financial Funding and Corporate Services,Grants to local authorities / other establishments within aggregate external funding or aggregate exchequer grant,BRADFORD CITY COUNCIL,PAYBACSAUTO      196020,43549.00
Department for Education,EDUCATION FUNDING AGENCY,13/11/2014,Grants,Financial Funding and Corporate Services,Grants to local authorities / other establishments within aggregate external funding or aggregate exchequer grant,BRADFORD CITY COUNCIL,PAYBACSAUTO      196020,11777.00
Department for Education,EDUCATION FUNDING AGENCY,13/11/2014,Grants,Financial Funding and Corporate Services,Grants to local authorities / other establishments within aggregate external funding or aggregate exchequer grant,BRADFORD CITY COUNCIL,PAYBACSAUTO      196020,2621.00
Department for Education,EDUCATION FUNDING AGENCY,13/11/2014,Grants,Financial Funding and Corporate Services,Grants to local authorities / other establishments within aggregate external funding or aggregate exchequer grant,BRADFORD CITY COUNCIL,PAYBACSAUTO      196020,12999.00
Department for Education,EDUCATION FUNDING AGENCY,13/11/2014,Grants,Financial Funding and Corporate Services,Grants to local authorities / other establishments within aggregate external funding or aggregate exchequer grant,BRADFORD CITY COUNCIL,PAYBACSAUTO      196020,3614.00
Department for Education,EDUCATION FUNDING AGENCY,13/11/2014,Grants,Financial Funding and Corporate Services,Grants to local authorities / other establishments within aggregate external funding or aggregate exchequer grant,BRADFORD CITY COUNCIL,PAYBACSAUTO      196020,1659.00
Department for Education,EDUCATION FUNDING AGENCY,13/11/2014,Grants,Financial Funding and Corporate Services,Grants to local authorities / other establishments within aggregate external funding or aggregate exchequer grant,BRADFORD CITY COUNCIL,PAYBACSAUTO      196020,3358.00
Department for Education,EDUCATION FUNDING AGENCY,13/11/2014,Grants,Financial Funding and Corporate Services,Grants to local authorities / other establishments within aggregate external funding or aggregate exchequer grant,BRADFORD CITY COUNCIL,PAYBACSAUTO      196020,3000.00
Department for Education,EDUCATION FUNDING AGENCY,13/11/2014,Grants,Financial Funding and Corporate Services,Grants to local authorities / other establishments within aggregate external funding or aggregate exchequer grant,BRADFORD CITY COUNCIL,PAYBACSAUTO      196020,500.00
Department for Education,EDUCATION FUNDING AGENCY,13/11/2014,Grants,Financial Funding and Corporate Services,Grants to local authorities / other establishments within aggregate external funding or aggregate exchequer grant,BRADFORD CITY COUNCIL,PAYBACSAUTO      196020,65222.00
Department for Education,EDUCATION FUNDING AGENCY,13/11/2014,Grants,Financial Funding and Corporate Services,Grants to local authorities / other establishments within aggregate external funding or aggregate exchequer grant,BRADFORD CITY COUNCIL,PAYBACSAUTO      196020,29167.00
Department for Education,EDUCATION FUNDING AGENCY,13/11/2014,Grants,Financial Funding and Corporate Services,Grants to local authorities / other establishments within aggregate external funding or aggregate exchequer grant,BRADFORD CITY COUNCIL,PAYBACSAUTO      196020,3665.00
Department for Education,EDUCATION FUNDING AGENCY,13/11/2014,Grants,Financial Funding and Corporate Services,Grants to local authorities / other establishments within aggregate external funding or aggregate exchequer grant,BRADFORD CITY COUNCIL,PAYBACSAUTO      196020,1000.00
Department for Education,EDUCATION FUNDING AGENCY,13/11/2014,Grants,Financial Funding and Corporate Services,Grants to local authorities / other establishments within aggregate external funding or aggregate exchequer grant,BRADFORD CITY COUNCIL,PAYBACSAUTO      196020,77701.00
Department for Education,EDUCATION FUNDING AGENCY,13/11/2014,Grants,Financial Funding and Corporate Services,Grants to local authorities / other establishments within aggregate external funding or aggregate exchequer grant,BRADFORD CITY COUNCIL,PAYBACSAUTO      196020,4195.00
Department for Education,EDUCATION FUNDING AGENCY,13/11/2014,Grants,Financial Funding and Corporate Services,Grants to local authorities / other establishments within aggregate external funding or aggregate exchequer grant,BRADFORD CITY COUNCIL,PAYBACSAUTO      196020,4130.00
Department for Education,EDUCATION FUNDING AGENCY,13/11/2014,Grants,Financial Funding and Corporate Services,Grants to local authorities / other establishments within aggregate external funding or aggregate exchequer grant,BRADFORD CITY COUNCIL,PAYBACSAUTO      196020,1952.00
Department for Education,EDUCATION FUNDING AGENCY,13/11/2014,Grants,Financial Funding and Corporate Services,Grants to local authorities / other establishments within aggregate external funding or aggregate exchequer grant,BRADFORD CITY COUNCIL,PAYBACSAUTO      196020,1415.00
Department for Education,EDUCATION FUNDING AGENCY,13/11/2014,Grants,Financial Funding and Corporate Services,Grants to local authorities / other establishments within aggregate external funding or aggregate exchequer grant,BRADFORD CITY COUNCIL,PAYBACSAUTO      196020,164519.00
Department for Education,EDUCATION FUNDING AGENCY,13/11/2014,Grants,Financial Funding and Corporate Services,Grants to local authorities / other establishments within aggregate external funding or aggregate exchequer grant,BRADFORD CITY COUNCIL,PAYBACSAUTO      196020,2239.00
Department for Education,EDUCATION FUNDING AGENCY,13/11/2014,Grants,Financial Funding and Corporate Services,Grants to local authorities / other establishments within aggregate external funding or aggregate exchequer grant,BRADFORD CITY COUNCIL,PAYBACSAUTO      196020,1000.00
Department for Education,EDUCATION FUNDING AGENCY,13/11/2014,Grants,Financial Funding and Corporate Services,Grants to local authorities / other establishments within aggregate external funding or aggregate exchequer grant,BRADFORD CITY COUNCIL,PAYBACSAUTO      196020,105833.00
Department for Education,EDUCATION FUNDING AGENCY,13/11/2014,Grants,Financial Funding and Corporate Services,Grants to local authorities / other establishments within aggregate external funding or aggregate exchequer grant,BRADFORD CITY COUNCIL,PAYBACSAUTO      196020,5814.00
Department for Education,EDUCATION FUNDING AGENCY,13/11/2014,Grants,Financial Funding and Corporate Services,Grants to local authorities / other establishments within aggregate external funding or aggregate exchequer grant,BRADFORD CITY COUNCIL,PAYBACSAUTO      196020,15000.00
Department for Education,EDUCATION FUNDING AGENCY,13/11/2014,Grants,Financial Funding and Corporate Services,Grants to local authorities / other establishments within aggregate external funding or aggregate exchequer grant,BRADFORD CITY COUNCIL,PAYBACSAUTO      196020,2829.00
Department for Education,EDUCATION FUNDING AGENCY,13/11/2014,Grants,Financial Funding and Corporate Services,Grants to local authorities / other establishments within aggregate external funding or aggregate exchequer grant,BRADFORD CITY COUNCIL,PAYBACSAUTO      196020,1500.00
Department for Education,EDUCATION FUNDING AGENCY,13/11/2014,Grants,Financial Funding and Corporate Services,Grants to local authorities / other establishments within aggregate external funding or aggregate exchequer grant,BRADFORD CITY COUNCIL,PAYBACSAUTO      196020,1500.00
Department for Education,EDUCATION FUNDING AGENCY,13/11/2014,Grants,Financial Funding and Corporate Services,Grants to local authorities / other establishments within aggregate external funding or aggregate exchequer grant,BRADFORD CITY COUNCIL,PAYBACSAUTO      196020,1360.00
Department for Education,EDUCATION FUNDING AGENCY,13/11/2014,Grants,Financial Funding and Corporate Services,Grants to local authorities / other establishments within aggregate external funding or aggregate exchequer grant,BRADFORD CITY COUNCIL,PAYBACSAUTO      196020,53072.00
Department for Education,EDUCATION FUNDING AGENCY,13/11/2014,Grants,Financial Funding and Corporate Services,Grants to local authorities / other establishments within aggregate external funding or aggregate exchequer grant,BRADFORD CITY COUNCIL,PAYBACSAUTO      196020,4500.00
Department for Education,EDUCATION FUNDING AGENCY,13/11/2014,Grants,Financial Funding and Corporate Services,Grants to local authorities / other establishments within aggregate external funding or aggregate exchequer grant,BRADFORD CITY COUNCIL,PAYBACSAUTO      196020,107544.00
Department for Education,EDUCATION FUNDING AGENCY,13/11/2014,Grants,Financial Funding and Corporate Services,Grants to local authorities / other establishments within aggregate external funding or aggregate exchequer grant,BRADFORD CITY COUNCIL,PAYBACSAUTO      196020,2500.00
Department for Education,EDUCATION FUNDING AGENCY,13/11/2014,Grants,Financial Funding and Corporate Services,Grants to local authorities / other establishments within aggregate external funding or aggregate exchequer grant,BRADFORD CITY COUNCIL,PAYBACSAUTO      196020,7815.00
Department for Education,EDUCATION FUNDING AGENCY,13/11/2014,Grants,Financial Funding and Corporate Services,Grants to local authorities / other establishments within aggregate external funding or aggregate exchequer grant,BRADFORD CITY COUNCIL,PAYBACSAUTO      196020,2000.00
Department for Education,EDUCATION FUNDING AGENCY,13/11/2014,Grants,Financial Funding and Corporate Services,Grants to local authorities / other establishments within aggregate external funding or aggregate exchequer grant,BRADFORD CITY COUNCIL,PAYBACSAUTO      196020,1717.00
Department for Education,EDUCATION FUNDING AGENCY,13/11/2014,Grants,Financial Funding and Corporate Services,Grants to local authorities / other establishments within aggregate external funding or aggregate exchequer grant,BRADFORD CITY COUNCIL,PAYBACSAUTO      196020,112255.00
Department for Education,EDUCATION FUNDING AGENCY,13/11/2014,Grants,Financial Funding and Corporate Services,Grants to local authorities / other establishments within aggregate external funding or aggregate exchequer grant,BRADFORD CITY COUNCIL,PAYBACSAUTO      196020,33703.00
Department for Education,EDUCATION FUNDING AGENCY,13/11/2014,Grants,Financial Funding and Corporate Services,Grants to local authorities / other establishments within aggregate external funding or aggregate exchequer grant,BRADFORD CITY COUNCIL,PAYBACSAUTO      196020,3898.00
Department for Education,EDUCATION FUNDING AGENCY,13/11/2014,Grants,Financial Funding and Corporate Services,Grants to local authorities / other establishments within aggregate external funding or aggregate exchequer grant,BRADFORD CITY COUNCIL,PAYBACSAUTO      196020,107959.00
Department for Education,EDUCATION FUNDING AGENCY,13/11/2014,Grants,Financial Funding and Corporate Services,Grants to local authorities / other establishments within aggregate external funding or aggregate exchequer grant,BRADFORD CITY COUNCIL,PAYBACSAUTO      196020,1000.00
Department for Education,EDUCATION FUNDING AGENCY,13/11/2014,Grants,Financial Funding and Corporate Services,Grants to local authorities / other establishments within aggregate external funding or aggregate exchequer grant,BRADFORD CITY COUNCIL,PAYBACSAUTO      196020,3935.00
Department for Education,EDUCATION FUNDING AGENCY,13/11/2014,Grants,Financial Funding and Corporate Services,Grants to local authorities / other establishments within aggregate external funding or aggregate exchequer grant,BRADFORD CITY COUNCIL,PAYBACSAUTO      196020,69985.00
Department for Education,EDUCATION FUNDING AGENCY,13/11/2014,Grants,Financial Funding and Corporate Services,Grants to local authorities / other establishments within aggregate external funding or aggregate exchequer grant,BRADFORD CITY COUNCIL,PAYBACSAUTO      196020,38552.00
Department for Education,EDUCATION FUNDING AGENCY,13/11/2014,Grants,Financial Funding and Corporate Services,Grants to local authorities / other establishments within aggregate external funding or aggregate exchequer grant,BRADFORD CITY COUNCIL,PAYBACSAUTO      196020,82892.00
Department for Education,EDUCATION FUNDING AGENCY,13/11/2014,Grants,Financial Funding and Corporate Services,Grants to local authorities / other establishments within aggregate external funding or aggregate exchequer grant,BRADFORD CITY COUNCIL,PAYBACSAUTO      196020,87527.00
Department for Education,EDUCATION FUNDING AGENCY,13/11/2014,Grants,Financial Funding and Corporate Services,Grants to local authorities / other establishments within aggregate external funding or aggregate exchequer grant,BRADFORD CITY COUNCIL,PAYBACSAUTO      196020,45496.00
Department for Education,EDUCATION FUNDING AGENCY,13/11/2014,Grants,Financial Funding and Corporate Services,Grants to local authorities / other establishments within aggregate external funding or aggregate exchequer grant,BRACKNELL FOREST BOROUGH COUNCIL,PAYBACSAUTO      196021,2934.00
Department for Education,EDUCATION FUNDING AGENCY,13/11/2014,Grants,Financial Funding and Corporate Services,Grants to local authorities / other establishments within aggregate external funding or aggregate exchequer grant,BRACKNELL FOREST BOROUGH COUNCIL,PAYBACSAUTO      196021,50741.00
Department for Education,EDUCATION FUNDING AGENCY,13/11/2014,Grants,Financial Funding and Corporate Services,Grants to local authorities / other establishments within aggregate external funding or aggregate exchequer grant,BRACKNELL FOREST BOROUGH COUNCIL,PAYBACSAUTO      196021,41765.00
Department for Education,EDUCATION FUNDING AGENCY,13/11/2014,Grants,Financial Funding and Corporate Services,Grants to local authorities / other establishments within aggregate external funding or aggregate exchequer grant,BRACKNELL FOREST BOROUGH COUNCIL,PAYBACSAUTO      196021,650.00
Department for Education,EDUCATION FUNDING AGENCY,13/11/2014,Grants,Financial Funding and Corporate Services,Grants to local authorities / other establishments within aggregate external funding or aggregate exchequer grant,BRACKNELL FOREST BOROUGH COUNCIL,PAYBACSAUTO      196021,1000.00
Department for Education,EDUCATION FUNDING AGENCY,13/11/2014,Grants,Financial Funding and Corporate Services,Grants to local authorities / other establishments within aggregate external funding or aggregate exchequer grant,BRACKNELL FOREST BOROUGH COUNCIL,PAYBACSAUTO      196021,5571.00
Department for Education,EDUCATION FUNDING AGENCY,13/11/2014,Grants,Financial Funding and Corporate Services,Grants to local authorities / other establishments within aggregate external funding or aggregate exchequer grant,BRACKNELL FOREST BOROUGH COUNCIL,PAYBACSAUTO      196021,119306.00
Department for Education,EDUCATION FUNDING AGENCY,13/11/2014,Grants,Financial Funding and Corporate Services,Grants to local authorities / other establishments within aggregate external funding or aggregate exchequer grant,BRACKNELL FOREST BOROUGH COUNCIL,PAYBACSAUTO      196021,4303.00
Department for Education,EDUCATION FUNDING AGENCY,13/11/2014,Grants,Financial Funding and Corporate Services,Grants to local authorities / other establishments within aggregate external funding or aggregate exchequer grant,BRACKNELL FOREST BOROUGH COUNCIL,PAYBACSAUTO      196021,427.00
Department for Education,EDUCATION FUNDING AGENCY,13/11/2014,Grants,Financial Funding and Corporate Services,Grants to local authorities / other establishments within aggregate external funding or aggregate exchequer grant,BRACKNELL FOREST BOROUGH COUNCIL,PAYBACSAUTO      196021,38963.00
Department for Education,EDUCATION FUNDING AGENCY,13/11/2014,Grants,Financial Funding and Corporate Services,Grants to local authorities / other establishments within aggregate external funding or aggregate exchequer grant,BRACKNELL FOREST BOROUGH COUNCIL,PAYBACSAUTO      196021,4500.00
Department for Education,EDUCATION FUNDING AGENCY,13/11/2014,Grants,Financial Funding and Corporate Services,Grants to local authorities / other establishments within aggregate external funding or aggregate exchequer grant,BRACKNELL FOREST BOROUGH COUNCIL,PAYBACSAUTO      196021,759.00
Department for Education,EDUCATION FUNDING AGENCY,13/11/2014,Grants,Financial Funding and Corporate Services,Grants to local authorities / other establishments within aggregate external funding or aggregate exchequer grant,BRACKNELL FOREST BOROUGH COUNCIL,PAYBACSAUTO      196021,500.00
Department for Education,EDUCATION FUNDING AGENCY,13/11/2014,Grants,Financial Funding and Corporate Services,Grants to local authorities / other establishments within aggregate external funding or aggregate exchequer grant,BRACKNELL FOREST BOROUGH COUNCIL,PAYBACSAUTO      196021,41667.00
Department for Education,EDUCATION FUNDING AGENCY,13/11/2014,Grants,Financial Funding and Corporate Services,Grants to local authorities / other establishments within aggregate external funding or aggregate exchequer grant,BRACKNELL FOREST BOROUGH COUNCIL,PAYBACSAUTO      196021,56229.00
Department for Education,EDUCATION FUNDING AGENCY,13/11/2014,Grants,Financial Funding and Corporate Services,Grants to local authorities / other establishments within aggregate external funding or aggregate exchequer grant,BRACKNELL FOREST BOROUGH COUNCIL,PAYBACSAUTO      196021,2000.00
Department for Education,EDUCATION FUNDING AGENCY,13/11/2014,Grants,Financial Funding and Corporate Services,Grants to local authorities / other establishments within aggregate external funding or aggregate exchequer grant,BRACKNELL FOREST BOROUGH COUNCIL,PAYBACSAUTO      196021,1500.00
Department for Education,EDUCATION FUNDING AGENCY,13/11/2014,Grants,Financial Funding and Corporate Services,Grants to local authorities / other establishments within aggregate external funding or aggregate exchequer grant,BRIGHTON & HOVE CITY COUNCIL,PAYBACSAUTO      196022,7685.00
Department for Education,EDUCATION FUNDING AGENCY,13/11/2014,Grants,Financial Funding and Corporate Services,Current grants to local authorities,BRIGHTON & HOVE CITY COUNCIL,PAYBACSAUTO      196022,73.00
Department for Education,EDUCATION FUNDING AGENCY,13/11/2014,Grants,Financial Funding and Corporate Services,Grants to local authorities / other establishments within aggregate external funding or aggregate exchequer grant,BRIGHTON & HOVE CITY COUNCIL,PAYBACSAUTO      196022,74604.00
Department for Education,EDUCATION FUNDING AGENCY,13/11/2014,Grants,Financial Funding and Corporate Services,Grants to local authorities / other establishments within aggregate external funding or aggregate exchequer grant,BRIGHTON & HOVE CITY COUNCIL,PAYBACSAUTO      196022,1000.00
Department for Education,EDUCATION FUNDING AGENCY,13/11/2014,Grants,Financial Funding and Corporate Services,Grants to local authorities / other establishments within aggregate external funding or aggregate exchequer grant,BRIGHTON & HOVE CITY COUNCIL,PAYBACSAUTO      196022,38333.00
Department for Education,EDUCATION FUNDING AGENCY,13/11/2014,Grants,Financial Funding and Corporate Services,Grants to local authorities / other establishments within aggregate external funding or aggregate exchequer grant,BRIGHTON & HOVE CITY COUNCIL,PAYBACSAUTO      196022,2536.00
Department for Education,EDUCATION FUNDING AGENCY,13/11/2014,Grants,Financial Funding and Corporate Services,Grants to local authorities / other establishments within aggregate external funding or aggregate exchequer grant,BRIGHTON & HOVE CITY COUNCIL,PAYBACSAUTO      196022,2269.00
Department for Education,EDUCATION FUNDING AGENCY,13/11/2014,Grants,Financial Funding and Corporate Services,Grants to local authorities / other establishments within aggregate external funding or aggregate exchequer grant,BRIGHTON & HOVE CITY COUNCIL,PAYBACSAUTO      196022,1000.00
Department for Education,EDUCATION FUNDING AGENCY,13/11/2014,Grants,Financial Funding and Corporate Services,Current grants to local authorities,BRIGHTON & HOVE CITY COUNCIL,PAYBACSAUTO      196022,590.00
Department for Education,EDUCATION FUNDING AGENCY,13/11/2014,Grants,Financial Funding and Corporate Services,Grants to local authorities / other establishments within aggregate external funding or aggregate exchequer grant,BRIGHTON & HOVE CITY COUNCIL,PAYBACSAUTO      196022,3000.00
Department for Education,EDUCATION FUNDING AGENCY,13/11/2014,Grants,Financial Funding and Corporate Services,Grants to local authorities / other establishments within aggregate external funding or aggregate exchequer grant,BRIGHTON & HOVE CITY COUNCIL,PAYBACSAUTO      196022,149274.00
Department for Education,EDUCATION FUNDING AGENCY,13/11/2014,Grants,Financial Funding and Corporate Services,Grants to local authorities / other establishments within aggregate external funding or aggregate exchequer grant,BRIGHTON & HOVE CITY COUNCIL,PAYBACSAUTO      196022,61544.00
Department for Education,EDUCATION FUNDING AGENCY,13/11/2014,Grants,Financial Funding and Corporate Services,Current grants to local authorities,BRIGHTON & HOVE CITY COUNCIL,PAYBACSAUTO      196022,1867.00
Department for Education,EDUCATION FUNDING AGENCY,13/11/2014,Grants,Financial Funding and Corporate Services,Grants to local authorities / other establishments within aggregate external funding or aggregate exchequer grant,BRISTOL CITY COUNCIL,PAYBACSAUTO      196023,59752.00
Department for Education,EDUCATION FUNDING AGENCY,13/11/2014,Grants,Financial Funding and Corporate Services,Grants to local authorities / other establishments within aggregate external funding or aggregate exchequer grant,BRISTOL CITY COUNCIL,PAYBACSAUTO      196023,25000.00
Department for Education,EDUCATION FUNDING AGENCY,13/11/2014,Grants,Financial Funding and Corporate Services,Grants to local authorities / other establishments within aggregate external funding or aggregate exchequer grant,BRISTOL CITY COUNCIL,PAYBACSAUTO      196023,7000.00
Department for Education,EDUCATION FUNDING AGENCY,13/11/2014,Grants,Financial Funding and Corporate Services,Grants to local authorities / other establishments within aggregate external funding or aggregate exchequer grant,BRISTOL CITY COUNCIL,PAYBACSAUTO      196023,171993.00
Department for Education,EDUCATION FUNDING AGENCY,13/11/2014,Grants,Financial Funding and Corporate Services,Grants to local authorities / other establishments within aggregate external funding or aggregate exchequer grant,BRISTOL CITY COUNCIL,PAYBACSAUTO      196023,8333.00
Department for Education,EDUCATION FUNDING AGENCY,13/11/2014,Grants,Financial Funding and Corporate Services,Grants to local authorities / other establishments within aggregate external funding or aggregate exchequer grant,BRISTOL CITY COUNCIL,PAYBACSAUTO      196023,20000.00
Department for Education,EDUCATION FUNDING AGENCY,13/11/2014,Grants,Financial Funding and Corporate Services,Grants to local authorities / other establishments within aggregate external funding or aggregate exchequer grant,BRISTOL CITY COUNCIL,PAYBACSAUTO      196023,8000.00
Department for Education,EDUCATION FUNDING AGENCY,13/11/2014,Grants,Financial Funding and Corporate Services,Grants to local authorities / other establishments within aggregate external funding or aggregate exchequer grant,BRISTOL CITY COUNCIL,PAYBACSAUTO      196023,17647.00
Department for Education,EDUCATION FUNDING AGENCY,13/11/2014,Grants,Financial Funding and Corporate Services,Grants to local authorities / other establishments within aggregate external funding or aggregate exchequer grant,BRISTOL CITY COUNCIL,PAYBACSAUTO      196023,10833.00
Department for Education,EDUCATION FUNDING AGENCY,13/11/2014,Grants,Financial Funding and Corporate Services,Grants to local authorities / other establishments within aggregate external funding or aggregate exchequer grant,BRISTOL CITY COUNCIL,PAYBACSAUTO      196023,16667.00
Department for Education,EDUCATION FUNDING AGENCY,13/11/2014,Grants,Financial Funding and Corporate Services,Current grants to local authorities,BRISTOL CITY COUNCIL,PAYBACSAUTO      196023,12899.00
Department for Education,EDUCATION FUNDING AGENCY,13/11/2014,Grants,Financial Funding and Corporate Services,Grants to local authorities / other establishments within aggregate external funding or aggregate exchequer grant,BRISTOL CITY COUNCIL,PAYBACSAUTO      196023,22500.00
Department for Education,EDUCATION FUNDING AGENCY,13/11/2014,Grants,Financial Funding and Corporate Services,Grants to local authorities / other establishments within aggregate external funding or aggregate exchequer grant,BRISTOL CITY COUNCIL,PAYBACSAUTO      196023,3032.00
Department for Education,EDUCATION FUNDING AGENCY,13/11/2014,Grants,Financial Funding and Corporate Services,Grants to local authorities / other establishments within aggregate external funding or aggregate exchequer grant,BRISTOL CITY COUNCIL,PAYBACSAUTO      196023,4500.00
Department for Education,EDUCATION FUNDING AGENCY,13/11/2014,Grants,Financial Funding and Corporate Services,Grants to local authorities / other establishments within aggregate external funding or aggregate exchequer grant,BRISTOL CITY COUNCIL,PAYBACSAUTO      196023,1079.00
Department for Education,EDUCATION FUNDING AGENCY,13/11/2014,Grants,Financial Funding and Corporate Services,Current grants to local authorities,BRISTOL CITY COUNCIL,PAYBACSAUTO      196023,149.00
Department for Education,EDUCATION FUNDING AGENCY,13/11/2014,Grants,Financial Funding and Corporate Services,Grants to local authorities / other establishments within aggregate external funding or aggregate exchequer grant,BUCKINGHAMSHIRE COUNTY COUNCIL,PAYBACSAUTO      196024,12500.00
Department for Education,EDUCATION FUNDING AGENCY,13/11/2014,Grants,Financial Funding and Corporate Services,Grants to local authorities / other establishments within aggregate external funding or aggregate exchequer grant,BUCKINGHAMSHIRE COUNTY COUNCIL,PAYBACSAUTO      196024,24167.00
Department for Education,EDUCATION FUNDING AGENCY,13/11/2014,Grants,Financial Funding and Corporate Services,Grants to local authorities / other establishments within aggregate external funding or aggregate exchequer grant,BUCKINGHAMSHIRE COUNTY COUNCIL,PAYBACSAUTO      196024,1436.00
Department for Education,EDUCATION FUNDING AGENCY,13/11/2014,Grants,Financial Funding and Corporate Services,Grants to local authorities / other establishments within aggregate external funding or aggregate exchequer grant,BUCKINGHAMSHIRE COUNTY COUNCIL,PAYBACSAUTO      196024,9167.00
Department for Education,EDUCATION FUNDING AGENCY,13/11/2014,Grants,Financial Funding and Corporate Services,Current grants to local authorities,BUCKINGHAMSHIRE COUNTY COUNCIL,PAYBACSAUTO      196024,2384.00
Department for Education,EDUCATION FUNDING AGENCY,13/11/2014,Grants,Financial Funding and Corporate Services,Grants to local authorities / other establishments within aggregate external funding or aggregate exchequer grant,BUCKINGHAMSHIRE COUNTY COUNCIL,PAYBACSAUTO      196024,6628.00
Department for Education,EDUCATION FUNDING AGENCY,13/11/2014,Grants,Financial Funding and Corporate Services,Current grants to local authorities,BUCKINGHAMSHIRE COUNTY COUNCIL,PAYBACSAUTO      196024,62.00
Department for Education,EDUCATION FUNDING AGENCY,13/11/2014,Grants,Financial Funding and Corporate Services,Grants to local authorities / other establishments within aggregate external funding or aggregate exchequer grant,BUCKINGHAMSHIRE COUNTY COUNCIL,PAYBACSAUTO      196024,2498.00
Department for Education,EDUCATION FUNDING AGENCY,13/11/2014,Grants,Financial Funding and Corporate Services,Grants to local authorities / other establishments within aggregate external funding or aggregate exchequer grant,BUCKINGHAMSHIRE COUNTY COUNCIL,PAYBACSAUTO      196024,500.00
Department for Education,EDUCATION FUNDING AGENCY,13/11/2014,Grants,Financial Funding and Corporate Services,Grants to local authorities / other establishments within aggregate external funding or aggregate exchequer grant,BUCKINGHAMSHIRE COUNTY COUNCIL,PAYBACSAUTO      196024,1341.00
Department for Education,EDUCATION FUNDING AGENCY,13/11/2014,Grants,Financial Funding and Corporate Services,Grants to local authorities / other establishments within aggregate external funding or aggregate exchequer grant,BUCKINGHAMSHIRE COUNTY COUNCIL,PAYBACSAUTO      196024,2000.00
Department for Education,EDUCATION FUNDING AGENCY,13/11/2014,Grants,Financial Funding and Corporate Services,Grants to local authorities / other establishments within aggregate external funding or aggregate exchequer grant,BUCKINGHAMSHIRE COUNTY COUNCIL,PAYBACSAUTO      196024,8333.00
Department for Education,EDUCATION FUNDING AGENCY,13/11/2014,Grants,Financial Funding and Corporate Services,Grants to local authorities / other establishments within aggregate external funding or aggregate exchequer grant,BUCKINGHAMSHIRE COUNTY COUNCIL,PAYBACSAUTO      196024,2877.00
Department for Education,EDUCATION FUNDING AGENCY,13/11/2014,Grants,Financial Funding and Corporate Services,Grants to local authorities / other establishments within aggregate external funding or aggregate exchequer grant,BUCKINGHAMSHIRE COUNTY COUNCIL,PAYBACSAUTO      196024,52551.00
Department for Education,EDUCATION FUNDING AGENCY,13/11/2014,Grants,Financial Funding and Corporate Services,Grants to local authorities / other establishments within aggregate external funding or aggregate exchequer grant,BUCKINGHAMSHIRE COUNTY COUNCIL,PAYBACSAUTO      196024,2001.00
Department for Education,EDUCATION FUNDING AGENCY,13/11/2014,Grants,Financial Funding and Corporate Services,Grants to local authorities / other establishments within aggregate external funding or aggregate exchequer grant,BUCKINGHAMSHIRE COUNTY COUNCIL,PAYBACSAUTO      196024,1262.00
Department for Education,EDUCATION FUNDING AGENCY,13/11/2014,Grants,Financial Funding and Corporate Services,Current grants to local authorities,BUCKINGHAMSHIRE COUNTY COUNCIL,PAYBACSAUTO      196024,2313.00
Department for Education,EDUCATION FUNDING AGENCY,13/11/2014,Grants,Financial Funding and Corporate Services,Grants to local authorities / other establishments within aggregate external funding or aggregate exchequer grant,BUCKINGHAMSHIRE COUNTY COUNCIL,PAYBACSAUTO      196024,324.00
Department for Education,EDUCATION FUNDING AGENCY,13/11/2014,Grants,Financial Funding and Corporate Services,Grants to local authorities / other establishments within aggregate external funding or aggregate exchequer grant,BUCKINGHAMSHIRE COUNTY COUNCIL,PAYBACSAUTO      196024,51556.00
Department for Education,EDUCATION FUNDING AGENCY,13/11/2014,Grants,Financial Funding and Corporate Services,Grants to local authorities / other establishments within aggregate external funding or aggregate exchequer grant,BUCKINGHAMSHIRE COUNTY COUNCIL,PAYBACSAUTO      196024,67078.00
Department for Education,EDUCATION FUNDING AGENCY,13/11/2014,Grants,Financial Funding and Corporate Services,Grants to local authorities / other establishments within aggregate external funding or aggregate exchequer grant,BUCKINGHAMSHIRE COUNTY COUNCIL,PAYBACSAUTO      196024,15000.00
Department for Education,EDUCATION FUNDING AGENCY,13/11/2014,Grants,Financial Funding and Corporate Services,Grants to local authorities / other establishments within aggregate external funding or aggregate exchequer grant,BUCKINGHAMSHIRE COUNTY COUNCIL,PAYBACSAUTO      196024,894.00
Department for Education,EDUCATION FUNDING AGENCY,13/11/2014,Grants,Financial Funding and Corporate Services,Grants to local authorities / other establishments within aggregate external funding or aggregate exchequer grant,BUCKINGHAMSHIRE COUNTY COUNCIL,PAYBACSAUTO      196024,1000.00
Department for Education,EDUCATION FUNDING AGENCY,13/11/2014,Grants,Financial Funding and Corporate Services,Grants to local authorities / other establishments within aggregate external funding or aggregate exchequer grant,BUCKINGHAMSHIRE COUNTY COUNCIL,PAYBACSAUTO      196024,4503.00
Department for Education,EDUCATION FUNDING AGENCY,13/11/2014,Grants,Financial Funding and Corporate Services,Grants to local authorities / other establishments within aggregate external funding or aggregate exchequer grant,BUCKINGHAMSHIRE COUNTY COUNCIL,PAYBACSAUTO      196024,2000.00
Department for Education,EDUCATION FUNDING AGENCY,13/11/2014,Grants,Financial Funding and Corporate Services,Grants to local authorities / other establishments within aggregate external funding or aggregate exchequer grant,BUCKINGHAMSHIRE COUNTY COUNCIL,PAYBACSAUTO      196024,460.00
Department for Education,EDUCATION FUNDING AGENCY,13/11/2014,Grants,Financial Funding and Corporate Services,Grants to local authorities / other establishments within aggregate external funding or aggregate exchequer grant,BUCKINGHAMSHIRE COUNTY COUNCIL,PAYBACSAUTO      196024,500.00
Department for Education,EDUCATION FUNDING AGENCY,13/11/2014,Grants,Financial Funding and Corporate Services,Grants to local authorities / other establishments within aggregate external funding or aggregate exchequer grant,BUCKINGHAMSHIRE COUNTY COUNCIL,PAYBACSAUTO      196024,24499.00
Department for Education,EDUCATION FUNDING AGENCY,13/11/2014,Grants,Financial Funding and Corporate Services,Grants to local authorities / other establishments within aggregate external funding or aggregate exchequer grant,BUCKINGHAMSHIRE COUNTY COUNCIL,PAYBACSAUTO      196024,1000.00
Department for Education,EDUCATION FUNDING AGENCY,13/11/2014,Grants,Financial Funding and Corporate Services,Grants to local authorities / other establishments within aggregate external funding or aggregate exchequer grant,BUCKINGHAMSHIRE COUNTY COUNCIL,PAYBACSAUTO      196024,30000.00
Department for Education,EDUCATION FUNDING AGENCY,13/11/2014,Grants,Financial Funding and Corporate Services,Grants to local authorities / other establishments within aggregate external funding or aggregate exchequer grant,BUCKINGHAMSHIRE COUNTY COUNCIL,PAYBACSAUTO      196024,55560.00
Department for Education,EDUCATION FUNDING AGENCY,13/11/2014,Grants,Financial Funding and Corporate Services,Grants to local authorities / other establishments within aggregate external funding or aggregate exchequer grant,BUCKINGHAMSHIRE COUNTY COUNCIL,PAYBACSAUTO      196024,3014.00
Department for Education,EDUCATION FUNDING AGENCY,13/11/2014,Grants,Financial Funding and Corporate Services,Grants to local authorities / other establishments within aggregate external funding or aggregate exchequer grant,BUCKINGHAMSHIRE COUNTY COUNCIL,PAYBACSAUTO      196024,63224.00
Department for Education,EDUCATION FUNDING AGENCY,13/11/2014,Grants,Financial Funding and Corporate Services,Grants to local authorities / other establishments within aggregate external funding or aggregate exchequer grant,BUCKINGHAMSHIRE COUNTY COUNCIL,PAYBACSAUTO      196024,20833.00
Department for Education,EDUCATION FUNDING AGENCY,13/11/2014,Grants,Financial Funding and Corporate Services,Current grants to local authorities,BURY METRO BOROUGH COUNCIL,PAYBACSAUTO      196025,73.00
Department for Education,EDUCATION FUNDING AGENCY,13/11/2014,Grants,Financial Funding and Corporate Services,Current grants to local authorities,BURY METRO BOROUGH COUNCIL,PAYBACSAUTO      196025,1313.00
Department for Education,EDUCATION FUNDING AGENCY,13/11/2014,Grants,Financial Funding and Corporate Services,Grants to local authorities / other establishments within aggregate external funding or aggregate exchequer grant,BURY METRO BOROUGH COUNCIL,PAYBACSAUTO      196025,45833.00
Department for Education,EDUCATION FUNDING AGENCY,13/11/2014,Grants,Financial Funding and Corporate Services,Grants to local authorities / other establishments within aggregate external funding or aggregate exchequer grant,BURY METRO BOROUGH COUNCIL,PAYBACSAUTO      196025,1667.00
Department for Education,EDUCATION FUNDING AGENCY,13/11/2014,Grants,Financial Funding and Corporate Services,Grants to local authorities / other establishments within aggregate external funding or aggregate exchequer grant,BURY METRO BOROUGH COUNCIL,PAYBACSAUTO      196025,4500.00
Department for Education,EDUCATION FUNDING AGENCY,13/11/2014,Grants,Financial Funding and Corporate Services,Grants to local authorities / other establishments within aggregate external funding or aggregate exchequer grant,BURY METRO BOROUGH COUNCIL,PAYBACSAUTO      196025,31620.00
Department for Education,EDUCATION FUNDING AGENCY,13/11/2014,Grants,Financial Funding and Corporate Services,Grants to local authorities / other establishments within aggregate external funding or aggregate exchequer grant,CALDERDALE METRO BOROUGH COUNCIL,PAYBACSAUTO      196026,5000.00
Department for Education,EDUCATION FUNDING AGENCY,13/11/2014,Grants,Financial Funding and Corporate Services,Grants to local authorities / other establishments within aggregate external funding or aggregate exchequer grant,CALDERDALE METRO BOROUGH COUNCIL,PAYBACSAUTO      196026,7179.00
Department for Education,EDUCATION FUNDING AGENCY,13/11/2014,Grants,Financial Funding and Corporate Services,Grants to local authorities / other establishments within aggregate external funding or aggregate exchequer grant,CALDERDALE METRO BOROUGH COUNCIL,PAYBACSAUTO      196026,48532.00
Department for Education,EDUCATION FUNDING AGENCY,13/11/2014,Grants,Financial Funding and Corporate Services,Grants to local authorities / other establishments within aggregate external funding or aggregate exchequer grant,CALDERDALE METRO BOROUGH COUNCIL,PAYBACSAUTO      196026,55797.00
Department for Education,EDUCATION FUNDING AGENCY,13/11/2014,Grants,Financial Funding and Corporate Services,Grants to local authorities / other establishments within aggregate external funding or aggregate exchequer grant,CALDERDALE METRO BOROUGH COUNCIL,PAYBACSAUTO      196026,4003.00
Department for Education,EDUCATION FUNDING AGENCY,13/11/2014,Grants,Financial Funding and Corporate Services,Grants to local authorities / other establishments within aggregate external funding or aggregate exchequer grant,CALDERDALE METRO BOROUGH COUNCIL,PAYBACSAUTO      196026,59864.00
Department for Education,EDUCATION FUNDING AGENCY,13/11/2014,Grants,Financial Funding and Corporate Services,Grants to local authorities / other establishments within aggregate external funding or aggregate exchequer grant,CALDERDALE METRO BOROUGH COUNCIL,PAYBACSAUTO      196026,42500.00
Department for Education,EDUCATION FUNDING AGENCY,13/11/2014,Grants,Financial Funding and Corporate Services,Grants to local authorities / other establishments within aggregate external funding or aggregate exchequer grant,CALDERDALE METRO BOROUGH COUNCIL,PAYBACSAUTO      196026,2850.00
Department for Education,EDUCATION FUNDING AGENCY,13/11/2014,Grants,Financial Funding and Corporate Services,Grants to local authorities / other establishments within aggregate external funding or aggregate exchequer grant,CAMBRIDGESHIRE COUNTY COUNCIL,PAYBACSAUTO      196027,3587.00
Department for Education,EDUCATION FUNDING AGENCY,13/11/2014,Grants,Financial Funding and Corporate Services,Grants to local authorities / other establishments within aggregate external funding or aggregate exchequer grant,CAMBRIDGESHIRE COUNTY COUNCIL,PAYBACSAUTO      196027,22500.00
Department for Education,EDUCATION FUNDING AGENCY,13/11/2014,Grants,Financial Funding and Corporate Services,Grants to local authorities / other establishments within aggregate external funding or aggregate exchequer grant,CAMBRIDGESHIRE COUNTY COUNCIL,PAYBACSAUTO      196027,8333.00
Department for Education,EDUCATION FUNDING AGENCY,13/11/2014,Grants,Financial Funding and Corporate Services,Grants to local authorities / other establishments within aggregate external funding or aggregate exchequer grant,CAMBRIDGESHIRE COUNTY COUNCIL,PAYBACSAUTO      196027,15833.00
Department for Education,EDUCATION FUNDING AGENCY,13/11/2014,Grants,Financial Funding and Corporate Services,Grants to local authorities / other establishments within aggregate external funding or aggregate exchequer grant,CAMBRIDGESHIRE COUNTY COUNCIL,PAYBACSAUTO      196027,20000.00
Department for Education,EDUCATION FUNDING AGENCY,13/11/2014,Grants,Financial Funding and Corporate Services,Grants to local authorities / other establishments within aggregate external funding or aggregate exchequer grant,CAMBRIDGESHIRE COUNTY COUNCIL,PAYBACSAUTO      196027,8333.00
Department for Education,EDUCATION FUNDING AGENCY,13/11/2014,Grants,Financial Funding and Corporate Services,Grants to local authorities / other establishments within aggregate external funding or aggregate exchequer grant,CAMBRIDGESHIRE COUNTY COUNCIL,PAYBACSAUTO      196027,1000.00
Department for Education,EDUCATION FUNDING AGENCY,13/11/2014,Grants,Financial Funding and Corporate Services,Grants to local authorities / other establishments within aggregate external funding or aggregate exchequer grant,CAMBRIDGESHIRE COUNTY COUNCIL,PAYBACSAUTO      196027,82090.00
Department for Education,EDUCATION FUNDING AGENCY,13/11/2014,Grants,Financial Funding and Corporate Services,Grants to local authorities / other establishments within aggregate external funding or aggregate exchequer grant,CAMBRIDGESHIRE COUNTY COUNCIL,PAYBACSAUTO      196027,22500.00
Department for Education,EDUCATION FUNDING AGENCY,13/11/2014,Grants,Financial Funding and Corporate Services,Grants to local authorities / other establishments within aggregate external funding or aggregate exchequer grant,CAMBRIDGESHIRE COUNTY COUNCIL,PAYBACSAUTO      196027,30833.00
Department for Education,EDUCATION FUNDING AGENCY,13/11/2014,Grants,Financial Funding and Corporate Services,Grants to local authorities / other establishments within aggregate external funding or aggregate exchequer grant,CENTRAL BEDFORDSHIRE COUNCIL,PAYBACSAUTO      196028,100251.00
Department for Education,EDUCATION FUNDING AGENCY,13/11/2014,Grants,Financial Funding and Corporate Services,Grants to local authorities / other establishments within aggregate external funding or aggregate exchequer grant,CENTRAL BEDFORDSHIRE COUNCIL,PAYBACSAUTO      196028,1000.00
Department for Education,EDUCATION FUNDING AGENCY,13/11/2014,Grants,Financial Funding and Corporate Services,Grants to local authorities / other establishments within aggregate external funding or aggregate exchequer grant,CENTRAL BEDFORDSHIRE COUNCIL,PAYBACSAUTO      196028,26667.00
Department for Education,EDUCATION FUNDING AGENCY,13/11/2014,Grants,Financial Funding and Corporate Services,Grants to local authorities / other establishments within aggregate external funding or aggregate exchequer grant,CENTRAL BEDFORDSHIRE COUNCIL,PAYBACSAUTO      196028,43828.00
Department for Education,EDUCATION FUNDING AGENCY,13/11/2014,Grants,Financial Funding and Corporate Services,Grants to local authorities / other establishments within aggregate external funding or aggregate exchequer grant,CENTRAL BEDFORDSHIRE COUNCIL,PAYBACSAUTO      196028,35227.00
Department for Education,EDUCATION FUNDING AGENCY,13/11/2014,Grants,Financial Funding and Corporate Services,Grants to local authorities / other establishments within aggregate external funding or aggregate exchequer grant,CENTRAL BEDFORDSHIRE COUNCIL,PAYBACSAUTO      196028,4265.00
Department for Education,EDUCATION FUNDING AGENCY,13/11/2014,Grants,Financial Funding and Corporate Services,Grants to local authorities / other establishments within aggregate external funding or aggregate exchequer grant,CENTRAL BEDFORDSHIRE COUNCIL,PAYBACSAUTO      196028,3599.00
Department for Education,EDUCATION FUNDING AGENCY,13/11/2014,Grants,Financial Funding and Corporate Services,Current grants to local authorities,CHESHIRE EAST COUNCIL,PAYBACSAUTO      196029,1200.00
Department for Education,EDUCATION FUNDING AGENCY,13/11/2014,Grants,Financial Funding and Corporate Services,Grants to local authorities / other establishments within aggregate external funding or aggregate exchequer grant,CHESHIRE EAST COUNCIL,PAYBACSAUTO      196029,10833.00
Department for Education,EDUCATION FUNDING AGENCY,13/11/2014,Grants,Financial Funding and Corporate Services,Grants to local authorities / other establishments within aggregate external funding or aggregate exchequer grant,CHESHIRE EAST COUNCIL,PAYBACSAUTO      196029,20000.00
Department for Education,EDUCATION FUNDING AGENCY,13/11/2014,Grants,Financial Funding and Corporate Services,Grants to local authorities / other establishments within aggregate external funding or aggregate exchequer grant,CHESHIRE EAST COUNCIL,PAYBACSAUTO      196029,5248.00
Department for Education,EDUCATION FUNDING AGENCY,13/11/2014,Grants,Financial Funding and Corporate Services,Grants to local authorities / other establishments within aggregate external funding or aggregate exchequer grant,CHESHIRE EAST COUNCIL,PAYBACSAUTO      196029,1000.00
Department for Education,EDUCATION FUNDING AGENCY,13/11/2014,Grants,Financial Funding and Corporate Services,Grants to local authorities / other establishments within aggregate external funding or aggregate exchequer grant,CHESHIRE EAST COUNCIL,PAYBACSAUTO      196029,3552.00
Department for Education,EDUCATION FUNDING AGENCY,13/11/2014,Grants,Financial Funding and Corporate Services,Grants to local authorities / other establishments within aggregate external funding or aggregate exchequer grant,CHESHIRE EAST COUNCIL,PAYBACSAUTO      196029,113040.00
Department for Education,EDUCATION FUNDING AGENCY,13/11/2014,Grants,Financial Funding and Corporate Services,Grants to local authorities / other establishments within aggregate external funding or aggregate exchequer grant,CHESHIRE EAST COUNCIL,PAYBACSAUTO      196029,163807.00
Department for Education,EDUCATION FUNDING AGENCY,13/11/2014,Grants,Financial Funding and Corporate Services,Grants to local authorities / other establishments within aggregate external funding or aggregate exchequer grant,CHESHIRE EAST COUNCIL,PAYBACSAUTO      196029,4888.00
Department for Education,EDUCATION FUNDING AGENCY,13/11/2014,Grants,Financial Funding and Corporate Services,Grants to local authorities / other establishments within aggregate external funding or aggregate exchequer grant,CHESHIRE EAST COUNCIL,PAYBACSAUTO      196029,500.00
Department for Education,EDUCATION FUNDING AGENCY,13/11/2014,Grants,Financial Funding and Corporate Services,Current grants to local authorities,CHESHIRE EAST COUNCIL,PAYBACSAUTO      196029,1667.00
Department for Education,EDUCATION FUNDING AGENCY,13/11/2014,Grants,Financial Funding and Corporate Services,Grants to local authorities / other establishments within aggregate external funding or aggregate exchequer grant,CHESHIRE EAST COUNCIL,PAYBACSAUTO      196029,63051.00
Department for Education,EDUCATION FUNDING AGENCY,13/11/2014,Grants,Financial Funding and Corporate Services,Grants to local authorities / other establishments within aggregate external funding or aggregate exchequer grant,CHESHIRE WEST & CHESTER COUNCIL,PAYBACSAUTO      196030,500.00
Department for Education,EDUCATION FUNDING AGENCY,13/11/2014,Grants,Financial Funding and Corporate Services,Grants to local authorities / other establishments within aggregate external funding or aggregate exchequer grant,CHESHIRE WEST & CHESTER COUNCIL,PAYBACSAUTO      196030,500.00
Department for Education,EDUCATION FUNDING AGENCY,13/11/2014,Grants,Financial Funding and Corporate Services,Grants to local authorities / other establishments within aggregate external funding or aggregate exchequer grant,CHESHIRE WEST & CHESTER COUNCIL,PAYBACSAUTO      196030,666.00
Department for Education,EDUCATION FUNDING AGENCY,13/11/2014,Grants,Financial Funding and Corporate Services,Grants to local authorities / other establishments within aggregate external funding or aggregate exchequer grant,CHESHIRE WEST & CHESTER COUNCIL,PAYBACSAUTO      196030,886.00
Department for Education,EDUCATION FUNDING AGENCY,13/11/2014,Grants,Financial Funding and Corporate Services,Grants to local authorities / other establishments within aggregate external funding or aggregate exchequer grant,CHESHIRE WEST & CHESTER COUNCIL,PAYBACSAUTO      196030,28333.00
Department for Education,EDUCATION FUNDING AGENCY,13/11/2014,Grants,Financial Funding and Corporate Services,Grants to local authorities / other establishments within aggregate external funding or aggregate exchequer grant,CHESHIRE WEST & CHESTER COUNCIL,PAYBACSAUTO      196030,4167.00
Department for Education,EDUCATION FUNDING AGENCY,13/11/2014,Grants,Financial Funding and Corporate Services,Grants to local authorities / other establishments within aggregate external funding or aggregate exchequer grant,CHESHIRE WEST & CHESTER COUNCIL,PAYBACSAUTO      196030,17500.00
Department for Education,EDUCATION FUNDING AGENCY,13/11/2014,Grants,Financial Funding and Corporate Services,Grants to local authorities / other establishments within aggregate external funding or aggregate exchequer grant,CHESHIRE WEST & CHESTER COUNCIL,PAYBACSAUTO      196030,79415.00
Department for Education,EDUCATION FUNDING AGENCY,13/11/2014,Grants,Financial Funding and Corporate Services,Grants to local authorities / other establishments within aggregate external funding or aggregate exchequer grant,CHESHIRE WEST & CHESTER COUNCIL,PAYBACSAUTO      196030,6740.00
Department for Education,EDUCATION FUNDING AGENCY,13/11/2014,Grants,Financial Funding and Corporate Services,Grants to local authorities / other establishments within aggregate external funding or aggregate exchequer grant,CHESHIRE WEST & CHESTER COUNCIL,PAYBACSAUTO      196030,3233.00
Department for Education,EDUCATION FUNDING AGENCY,13/11/2014,Grants,Financial Funding and Corporate Services,Grants to local authorities / other establishments within aggregate external funding or aggregate exchequer grant,CHESHIRE WEST & CHESTER COUNCIL,PAYBACSAUTO      196030,5394.00
Department for Education,EDUCATION FUNDING AGENCY,13/11/2014,Grants,Financial Funding and Corporate Services,Grants to local authorities / other establishments within aggregate external funding or aggregate exchequer grant,CHESHIRE WEST & CHESTER COUNCIL,PAYBACSAUTO      196030,11667.00
Department for Education,EDUCATION FUNDING AGENCY,13/11/2014,Grants,Financial Funding and Corporate Services,Grants to local authorities / other establishments within aggregate external funding or aggregate exchequer grant,CHESHIRE WEST & CHESTER COUNCIL,PAYBACSAUTO      196030,18333.00
Department for Education,EDUCATION FUNDING AGENCY,13/11/2014,Grants,Financial Funding and Corporate Services,Grants to local authorities / other establishments within aggregate external funding or aggregate exchequer grant,CHESHIRE WEST & CHESTER COUNCIL,PAYBACSAUTO      196030,90656.00
Department for Education,EDUCATION FUNDING AGENCY,13/11/2014,Grants,Financial Funding and Corporate Services,Grants to local authorities / other establishments within aggregate external funding or aggregate exchequer grant,CHESHIRE WEST & CHESTER COUNCIL,PAYBACSAUTO      196030,75822.00
Department for Education,EDUCATION FUNDING AGENCY,13/11/2014,Grants,Financial Funding and Corporate Services,Grants to local authorities / other establishments within aggregate external funding or aggregate exchequer grant,CHESHIRE WEST & CHESTER COUNCIL,PAYBACSAUTO      196030,16667.00
Department for Education,EDUCATION FUNDING AGENCY,13/11/2014,Grants,Financial Funding and Corporate Services,Grants to local authorities / other establishments within aggregate external funding or aggregate exchequer grant,CHESHIRE WEST & CHESTER COUNCIL,PAYBACSAUTO      196030,4586.00
Department for Education,EDUCATION FUNDING AGENCY,13/11/2014,Grants,Financial Funding and Corporate Services,Grants to local authorities / other establishments within aggregate external funding or aggregate exchequer grant,CHESHIRE WEST & CHESTER COUNCIL,PAYBACSAUTO      196030,41362.00
Department for Education,EDUCATION FUNDING AGENCY,13/11/2014,Grants,Financial Funding and Corporate Services,Grants to local authorities / other establishments within aggregate external funding or aggregate exchequer grant,CHESHIRE WEST & CHESTER COUNCIL,PAYBACSAUTO      196030,500.00
Department for Education,EDUCATION FUNDING AGENCY,13/11/2014,Grants,Financial Funding and Corporate Services,Grants to local authorities / other establishments within aggregate external funding or aggregate exchequer grant,CHESHIRE WEST & CHESTER COUNCIL,PAYBACSAUTO      196030,85356.00
Department for Education,EDUCATION FUNDING AGENCY,13/11/2014,Grants,Financial Funding and Corporate Services,Grants to local authorities / other establishments within aggregate external funding or aggregate exchequer grant,CHESHIRE WEST & CHESTER COUNCIL,PAYBACSAUTO      196030,51530.00
Department for Education,EDUCATION FUNDING AGENCY,13/11/2014,Grants,Financial Funding and Corporate Services,Grants to local authorities / other establishments within aggregate external funding or aggregate exchequer grant,CHESHIRE WEST & CHESTER COUNCIL,PAYBACSAUTO      196030,1865.00
Department for Education,EDUCATION FUNDING AGENCY,13/11/2014,Grants,Financial Funding and Corporate Services,Grants to local authorities / other establishments within aggregate external funding or aggregate exchequer grant,CHESHIRE WEST & CHESTER COUNCIL,PAYBACSAUTO      196030,79451.00
Department for Education,EDUCATION FUNDING AGENCY,13/11/2014,Grants,Financial Funding and Corporate Services,Grants to local authorities / other establishments within aggregate external funding or aggregate exchequer grant,CITY OF YORK COUNCIL,PAYBACSAUTO      196031,500.00
Department for Education,EDUCATION FUNDING AGENCY,13/11/2014,Grants,Financial Funding and Corporate Services,Grants to local authorities / other establishments within aggregate external funding or aggregate exchequer grant,CITY OF YORK COUNCIL,PAYBACSAUTO      196031,6251.00
Department for Education,EDUCATION FUNDING AGENCY,13/11/2014,Grants,Financial Funding and Corporate Services,Grants to local authorities / other establishments within aggregate external funding or aggregate exchequer grant,CITY OF YORK COUNCIL,PAYBACSAUTO      196031,55000.00
Department for Education,EDUCATION FUNDING AGENCY,13/11/2014,Grants,Financial Funding and Corporate Services,Grants to local authorities / other establishments within aggregate external funding or aggregate exchequer grant,CITY OF YORK COUNCIL,PAYBACSAUTO      196031,5098.00
Department for Education,EDUCATION FUNDING AGENCY,13/11/2014,Grants,Financial Funding and Corporate Services,Current grants to local authorities,CITY OF YORK COUNCIL,PAYBACSAUTO      196031,4464.00
Department for Education,EDUCATION FUNDING AGENCY,13/11/2014,Grants,Financial Funding and Corporate Services,Grants to local authorities / other establishments within aggregate external funding or aggregate exchequer grant,CITY OF YORK COUNCIL,PAYBACSAUTO      196031,103013.00
Department for Education,EDUCATION FUNDING AGENCY,13/11/2014,Grants,Financial Funding and Corporate Services,Grants to local authorities / other establishments within aggregate external funding or aggregate exchequer grant,CITY OF YORK COUNCIL,PAYBACSAUTO      196031,2209.00
Department for Education,EDUCATION FUNDING AGENCY,13/11/2014,Grants,Financial Funding and Corporate Services,Grants to local authorities / other establishments within aggregate external funding or aggregate exchequer grant,CITY OF YORK COUNCIL,PAYBACSAUTO      196031,500.00
Department for Education,EDUCATION FUNDING AGENCY,13/11/2014,Grants,Financial Funding and Corporate Services,Grants to local authorities / other establishments within aggregate external funding or aggregate exchequer grant,CITY OF YORK COUNCIL,PAYBACSAUTO      196031,82990.00
Department for Education,EDUCATION FUNDING AGENCY,13/11/2014,Grants,Financial Funding and Corporate Services,Grants to local authorities / other establishments within aggregate external funding or aggregate exchequer grant,CITY OF YORK COUNCIL,PAYBACSAUTO      196031,1000.00
Department for Education,EDUCATION FUNDING AGENCY,13/11/2014,Grants,Financial Funding and Corporate Services,Grants to local authorities / other establishments within aggregate external funding or aggregate exchequer grant,CITY OF YORK COUNCIL,PAYBACSAUTO      196031,3776.00
Department for Education,EDUCATION FUNDING AGENCY,13/11/2014,Grants,Financial Funding and Corporate Services,Current grants to local authorities,CITY OF YORK COUNCIL,PAYBACSAUTO      196031,10431.00
Department for Education,EDUCATION FUNDING AGENCY,13/11/2014,Grants,Financial Funding and Corporate Services,Grants to local authorities / other establishments within aggregate external funding or aggregate exchequer grant,CITY OF YORK COUNCIL,PAYBACSAUTO      196031,2083.00
Department for Education,EDUCATION FUNDING AGENCY,13/11/2014,Grants,Financial Funding and Corporate Services,Grants to local authorities / other establishments within aggregate external funding or aggregate exchequer grant,CITY OF YORK COUNCIL,PAYBACSAUTO      196031,115862.00
Department for Education,EDUCATION FUNDING AGENCY,13/11/2014,Grants,Financial Funding and Corporate Services,Grants to local authorities / other establishments within aggregate external funding or aggregate exchequer grant,CITY OF YORK COUNCIL,PAYBACSAUTO      196031,3312.00
Department for Education,EDUCATION FUNDING AGENCY,13/11/2014,Grants,Financial Funding and Corporate Services,Grants to local authorities / other establishments within aggregate external funding or aggregate exchequer grant,CITY OF YORK COUNCIL,PAYBACSAUTO      196031,102381.00
Department for Education,EDUCATION FUNDING AGENCY,13/11/2014,Grants,Financial Funding and Corporate Services,Current grants to local authorities,THE CORNWALL COUNCIL,PAYBACSAUTO      196032,24611.00
Department for Education,EDUCATION FUNDING AGENCY,13/11/2014,Grants,Financial Funding and Corporate Services,Grants to local authorities / other establishments within aggregate external funding or aggregate exchequer grant,THE CORNWALL COUNCIL,PAYBACSAUTO      196032,3000.00
Department for Education,EDUCATION FUNDING AGENCY,13/11/2014,Grants,Financial Funding and Corporate Services,Grants to local authorities / other establishments within aggregate external funding or aggregate exchequer grant,THE CORNWALL COUNCIL,PAYBACSAUTO      196032,3500.00
Department for Education,EDUCATION FUNDING AGENCY,13/11/2014,Grants,Financial Funding and Corporate Services,Grants to local authorities / other establishments within aggregate external funding or aggregate exchequer grant,THE CORNWALL COUNCIL,PAYBACSAUTO      196032,55794.00
Department for Education,EDUCATION FUNDING AGENCY,13/11/2014,Grants,Financial Funding and Corporate Services,Grants to local authorities / other establishments within aggregate external funding or aggregate exchequer grant,THE CORNWALL COUNCIL,PAYBACSAUTO      196032,384.00
Department for Education,EDUCATION FUNDING AGENCY,13/11/2014,Grants,Financial Funding and Corporate Services,Grants to local authorities / other establishments within aggregate external funding or aggregate exchequer grant,THE CORNWALL COUNCIL,PAYBACSAUTO      196032,13333.00
Department for Education,EDUCATION FUNDING AGENCY,13/11/2014,Grants,Financial Funding and Corporate Services,Grants to local authorities / other establishments within aggregate external funding or aggregate exchequer grant,THE CORNWALL COUNCIL,PAYBACSAUTO      196032,20833.00
Department for Education,EDUCATION FUNDING AGENCY,13/11/2014,Grants,Financial Funding and Corporate Services,Grants to local authorities / other establishments within aggregate external funding or aggregate exchequer grant,THE CORNWALL COUNCIL,PAYBACSAUTO      196032,70526.00
Department for Education,EDUCATION FUNDING AGENCY,13/11/2014,Grants,Financial Funding and Corporate Services,Grants to local authorities / other establishments within aggregate external funding or aggregate exchequer grant,THE CORNWALL COUNCIL,PAYBACSAUTO      196032,7969.00
Department for Education,EDUCATION FUNDING AGENCY,13/11/2014,Grants,Financial Funding and Corporate Services,Grants to local authorities / other establishments within aggregate external funding or aggregate exchequer grant,THE CORNWALL COUNCIL,PAYBACSAUTO      196032,136313.00
Department for Education,EDUCATION FUNDING AGENCY,13/11/2014,Grants,Financial Funding and Corporate Services,Grants to local authorities / other establishments within aggregate external funding or aggregate exchequer grant,THE CORNWALL COUNCIL,PAYBACSAUTO      196032,850.00
Department for Education,EDUCATION FUNDING AGENCY,13/11/2014,Grants,Financial Funding and Corporate Services,Grants to local authorities / other establishments within aggregate external funding or aggregate exchequer grant,THE CORNWALL COUNCIL,PAYBACSAUTO      196032,1000.00
Department for Education,EDUCATION FUNDING AGENCY,13/11/2014,Grants,Financial Funding and Corporate Services,Grants to local authorities / other establishments within aggregate external funding or aggregate exchequer grant,THE CORNWALL COUNCIL,PAYBACSAUTO      196032,67984.00
Department for Education,EDUCATION FUNDING AGENCY,13/11/2014,Grants,Financial Funding and Corporate Services,Grants to local authorities / other establishments within aggregate external funding or aggregate exchequer grant,THE CORNWALL COUNCIL,PAYBACSAUTO      196032,6567.00
Department for Education,EDUCATION FUNDING AGENCY,13/11/2014,Grants,Financial Funding and Corporate Services,Grants to local authorities / other establishments within aggregate external funding or aggregate exchequer grant,THE CORNWALL COUNCIL,PAYBACSAUTO      196032,4581.00
Department for Education,EDUCATION FUNDING AGENCY,13/11/2014,Grants,Financial Funding and Corporate Services,Grants to local authorities / other establishments within aggregate external funding or aggregate exchequer grant,THE CORNWALL COUNCIL,PAYBACSAUTO      196032,365.00
Department for Education,EDUCATION FUNDING AGENCY,13/11/2014,Grants,Financial Funding and Corporate Services,Grants to local authorities / other establishments within aggregate external funding or aggregate exchequer grant,THE CORNWALL COUNCIL,PAYBACSAUTO      196032,11667.00
Department for Education,EDUCATION FUNDING AGENCY,13/11/2014,Grants,Financial Funding and Corporate Services,Grants to local authorities / other establishments within aggregate external funding or aggregate exchequer grant,THE CORNWALL COUNCIL,PAYBACSAUTO      196032,2284.00
Department for Education,EDUCATION FUNDING AGENCY,13/11/2014,Grants,Financial Funding and Corporate Services,Grants to local authorities / other establishments within aggregate external funding or aggregate exchequer grant,THE CORNWALL COUNCIL,PAYBACSAUTO      196032,500.00
Department for Education,EDUCATION FUNDING AGENCY,13/11/2014,Grants,Financial Funding and Corporate Services,Grants to local authorities / other establishments within aggregate external funding or aggregate exchequer grant,THE CORNWALL COUNCIL,PAYBACSAUTO      196032,46713.00
Department for Education,EDUCATION FUNDING AGENCY,13/11/2014,Grants,Financial Funding and Corporate Services,Grants to local authorities / other establishments within aggregate external funding or aggregate exchequer grant,THE CORNWALL COUNCIL,PAYBACSAUTO      196032,41910.00
Department for Education,EDUCATION FUNDING AGENCY,13/11/2014,Grants,Financial Funding and Corporate Services,Grants to local authorities / other establishments within aggregate external funding or aggregate exchequer grant,THE CORNWALL COUNCIL,PAYBACSAUTO      196032,11808.00
Department for Education,EDUCATION FUNDING AGENCY,13/11/2014,Grants,Financial Funding and Corporate Services,Grants to local authorities / other establishments within aggregate external funding or aggregate exchequer grant,THE CORNWALL COUNCIL,PAYBACSAUTO      196032,2500.00
Department for Education,EDUCATION FUNDING AGENCY,13/11/2014,Grants,Financial Funding and Corporate Services,Grants to local authorities / other establishments within aggregate external funding or aggregate exchequer grant,COVENTRY CITY COUNCIL,PAYBACSAUTO      196033,51446.00
Department for Education,EDUCATION FUNDING AGENCY,13/11/2014,Grants,Financial Funding and Corporate Services,Grants to local authorities / other establishments within aggregate external funding or aggregate exchequer grant,COVENTRY CITY COUNCIL,PAYBACSAUTO      196033,31667.00
Department for Education,EDUCATION FUNDING AGENCY,13/11/2014,Grants,Financial Funding and Corporate Services,Grants to local authorities / other establishments within aggregate external funding or aggregate exchequer grant,COVENTRY CITY COUNCIL,PAYBACSAUTO      196033,36690.00
Department for Education,EDUCATION FUNDING AGENCY,13/11/2014,Grants,Financial Funding and Corporate Services,Grants to local authorities / other establishments within aggregate external funding or aggregate exchequer grant,COVENTRY CITY COUNCIL,PAYBACSAUTO      196033,8233.00
Department for Education,EDUCATION FUNDING AGENCY,13/11/2014,Grants,Financial Funding and Corporate Services,Grants to local authorities / other establishments within aggregate external funding or aggregate exchequer grant,COVENTRY CITY COUNCIL,PAYBACSAUTO      196033,1880.00
Department for Education,EDUCATION FUNDING AGENCY,13/11/2014,Grants,Financial Funding and Corporate Services,Current grants to local authorities,COVENTRY CITY COUNCIL,PAYBACSAUTO      196033,2953.00
Department for Education,EDUCATION FUNDING AGENCY,13/11/2014,Grants,Financial Funding and Corporate Services,Grants to local authorities / other establishments within aggregate external funding or aggregate exchequer grant,COVENTRY CITY COUNCIL,PAYBACSAUTO      196033,3293.00
Department for Education,EDUCATION FUNDING AGENCY,13/11/2014,Grants,Financial Funding and Corporate Services,Grants to local authorities / other establishments within aggregate external funding or aggregate exchequer grant,COVENTRY CITY COUNCIL,PAYBACSAUTO      196033,500.00
Department for Education,EDUCATION FUNDING AGENCY,13/11/2014,Grants,Financial Funding and Corporate Services,Grants to local authorities / other establishments within aggregate external funding or aggregate exchequer grant,COVENTRY CITY COUNCIL,PAYBACSAUTO      196033,97944.00
Department for Education,EDUCATION FUNDING AGENCY,13/11/2014,Grants,Financial Funding and Corporate Services,Grants to local authorities / other establishments within aggregate external funding or aggregate exchequer grant,COVENTRY CITY COUNCIL,PAYBACSAUTO      196033,500.00
Department for Education,EDUCATION FUNDING AGENCY,13/11/2014,Grants,Financial Funding and Corporate Services,Grants to local authorities / other establishments within aggregate external funding or aggregate exchequer grant,COVENTRY CITY COUNCIL,PAYBACSAUTO      196033,16667.00
Department for Education,EDUCATION FUNDING AGENCY,13/11/2014,Grants,Financial Funding and Corporate Services,Grants to local authorities / other establishments within aggregate external funding or aggregate exchequer grant,COVENTRY CITY COUNCIL,PAYBACSAUTO      196033,67063.00
Department for Education,EDUCATION FUNDING AGENCY,13/11/2014,Grants,Financial Funding and Corporate Services,Grants to local authorities / other establishments within aggregate external funding or aggregate exchequer grant,COVENTRY CITY COUNCIL,PAYBACSAUTO      196033,10278.00
Department for Education,EDUCATION FUNDING AGENCY,13/11/2014,Grants,Financial Funding and Corporate Services,Grants to local authorities / other establishments within aggregate external funding or aggregate exchequer grant,COVENTRY CITY COUNCIL,PAYBACSAUTO      196033,45447.00
Department for Education,EDUCATION FUNDING AGENCY,13/11/2014,Grants,Financial Funding and Corporate Services,Grants to local authorities / other establishments within aggregate external funding or aggregate exchequer grant,COVENTRY CITY COUNCIL,PAYBACSAUTO      196033,30833.00
Department for Education,EDUCATION FUNDING AGENCY,13/11/2014,Grants,Financial Funding and Corporate Services,Grants to local authorities / other establishments within aggregate external funding or aggregate exchequer grant,COVENTRY CITY COUNCIL,PAYBACSAUTO      196033,2592.00
Department for Education,EDUCATION FUNDING AGENCY,13/11/2014,Grants,Financial Funding and Corporate Services,Grants to local authorities / other establishments within aggregate external funding or aggregate exchequer grant,COVENTRY CITY COUNCIL,PAYBACSAUTO      196033,1449.00
Department for Education,EDUCATION FUNDING AGENCY,13/11/2014,Grants,Financial Funding and Corporate Services,Grants to local authorities / other establishments within aggregate external funding or aggregate exchequer grant,COVENTRY CITY COUNCIL,PAYBACSAUTO      196033,500.00
Department for Education,EDUCATION FUNDING AGENCY,13/11/2014,Grants,Financial Funding and Corporate Services,Grants to local authorities / other establishments within aggregate external funding or aggregate exchequer grant,COVENTRY CITY COUNCIL,PAYBACSAUTO      196033,712.00
Department for Education,EDUCATION FUNDING AGENCY,13/11/2014,Grants,Financial Funding and Corporate Services,Grants to local authorities / other establishments within aggregate external funding or aggregate exchequer grant,COVENTRY CITY COUNCIL,PAYBACSAUTO      196033,54993.00
Department for Education,EDUCATION FUNDING AGENCY,13/11/2014,Grants,Financial Funding and Corporate Services,Current grants to local authorities,COVENTRY CITY COUNCIL,PAYBACSAUTO      196033,3713.00
Department for Education,EDUCATION FUNDING AGENCY,13/11/2014,Grants,Financial Funding and Corporate Services,Grants to local authorities / other establishments within aggregate external funding or aggregate exchequer grant,COVENTRY CITY COUNCIL,PAYBACSAUTO      196033,6007.00
Department for Education,EDUCATION FUNDING AGENCY,13/11/2014,Grants,Financial Funding and Corporate Services,Grants to local authorities / other establishments within aggregate external funding or aggregate exchequer grant,COVENTRY CITY COUNCIL,PAYBACSAUTO      196033,191.00
Department for Education,EDUCATION FUNDING AGENCY,13/11/2014,Grants,Financial Funding and Corporate Services,Grants to local authorities / other establishments within aggregate external funding or aggregate exchequer grant,COVENTRY CITY COUNCIL,PAYBACSAUTO      196033,55558.00
Department for Education,EDUCATION FUNDING AGENCY,13/11/2014,Grants,Financial Funding and Corporate Services,Grants to local authorities / other establishments within aggregate external funding or aggregate exchequer grant,CUMBRIA COUNTY COUNCIL,PAYBACSAUTO      196034,1252.00
Department for Education,EDUCATION FUNDING AGENCY,13/11/2014,Grants,Financial Funding and Corporate Services,Grants to local authorities / other establishments within aggregate external funding or aggregate exchequer grant,CUMBRIA COUNTY COUNCIL,PAYBACSAUTO      196034,7416.00
Department for Education,EDUCATION FUNDING AGENCY,13/11/2014,Grants,Financial Funding and Corporate Services,Grants to local authorities / other establishments within aggregate external funding or aggregate exchequer grant,CUMBRIA COUNTY COUNCIL,PAYBACSAUTO      196034,229.00
Department for Education,EDUCATION FUNDING AGENCY,13/11/2014,Grants,Financial Funding and Corporate Services,Grants to local authorities / other establishments within aggregate external funding or aggregate exchequer grant,CUMBRIA COUNTY COUNCIL,PAYBACSAUTO      196034,32081.00
Department for Education,EDUCATION FUNDING AGENCY,13/11/2014,Grants,Financial Funding and Corporate Services,Grants to local authorities / other establishments within aggregate external funding or aggregate exchequer grant,CUMBRIA COUNTY COUNCIL,PAYBACSAUTO      196034,23952.00
Department for Education,EDUCATION FUNDING AGENCY,13/11/2014,Grants,Financial Funding and Corporate Services,Grants to local authorities / other establishments within aggregate external funding or aggregate exchequer grant,CUMBRIA COUNTY COUNCIL,PAYBACSAUTO      196034,500.00
Department for Education,EDUCATION FUNDING AGENCY,13/11/2014,Grants,Financial Funding and Corporate Services,Grants to local authorities / other establishments within aggregate external funding or aggregate exchequer grant,CUMBRIA COUNTY COUNCIL,PAYBACSAUTO      196034,15976.00
Department for Education,EDUCATION FUNDING AGENCY,13/11/2014,Grants,Financial Funding and Corporate Services,Grants to local authorities / other establishments within aggregate external funding or aggregate exchequer grant,CUMBRIA COUNTY COUNCIL,PAYBACSAUTO      196034,83009.00
Department for Education,EDUCATION FUNDING AGENCY,13/11/2014,Grants,Financial Funding and Corporate Services,Grants to local authorities / other establishments within aggregate external funding or aggregate exchequer grant,CUMBRIA COUNTY COUNCIL,PAYBACSAUTO      196034,20193.00
Department for Education,EDUCATION FUNDING AGENCY,13/11/2014,Grants,Financial Funding and Corporate Services,Grants to local authorities / other establishments within aggregate external funding or aggregate exchequer grant,CUMBRIA COUNTY COUNCIL,PAYBACSAUTO      196034,1000.00
Department for Education,EDUCATION FUNDING AGENCY,13/11/2014,Grants,Financial Funding and Corporate Services,Grants to local authorities / other establishments within aggregate external funding or aggregate exchequer grant,CUMBRIA COUNTY COUNCIL,PAYBACSAUTO      196034,4500.00
Department for Education,EDUCATION FUNDING AGENCY,13/11/2014,Grants,Financial Funding and Corporate Services,Grants to local authorities / other establishments within aggregate external funding or aggregate exchequer grant,CUMBRIA COUNTY COUNCIL,PAYBACSAUTO      196034,2599.00
Department for Education,EDUCATION FUNDING AGENCY,13/11/2014,Grants,Financial Funding and Corporate Services,Grants to local authorities / other establishments within aggregate external funding or aggregate exchequer grant,CUMBRIA COUNTY COUNCIL,PAYBACSAUTO      196034,1771.00
Department for Education,EDUCATION FUNDING AGENCY,13/11/2014,Grants,Financial Funding and Corporate Services,Grants to local authorities / other establishments within aggregate external funding or aggregate exchequer grant,CUMBRIA COUNTY COUNCIL,PAYBACSAUTO      196034,2237.00
Department for Education,EDUCATION FUNDING AGENCY,13/11/2014,Grants,Financial Funding and Corporate Services,Current grants to local authorities,CUMBRIA COUNTY COUNCIL,PAYBACSAUTO      196034,3125.00
Department for Education,EDUCATION FUNDING AGENCY,13/11/2014,Grants,Financial Funding and Corporate Services,Grants to local authorities / other establishments within aggregate external funding or aggregate exchequer grant,CUMBRIA COUNTY COUNCIL,PAYBACSAUTO      196034,3673.00
Department for Education,EDUCATION FUNDING AGENCY,13/11/2014,Grants,Financial Funding and Corporate Services,Grants to local authorities / other establishments within aggregate external funding or aggregate exchequer grant,CUMBRIA COUNTY COUNCIL,PAYBACSAUTO      196034,500.00
Department for Education,EDUCATION FUNDING AGENCY,13/11/2014,Grants,Financial Funding and Corporate Services,Grants to local authorities / other establishments within aggregate external funding or aggregate exchequer grant,CUMBRIA COUNTY COUNCIL,PAYBACSAUTO      196034,39398.00
Department for Education,EDUCATION FUNDING AGENCY,13/11/2014,Grants,Financial Funding and Corporate Services,Grants to local authorities / other establishments within aggregate external funding or aggregate exchequer grant,CUMBRIA COUNTY COUNCIL,PAYBACSAUTO      196034,3540.00
Department for Education,EDUCATION FUNDING AGENCY,13/11/2014,Grants,Financial Funding and Corporate Services,Current grants to local authorities,CUMBRIA COUNTY COUNCIL,PAYBACSAUTO      196034,2607.00
Department for Education,EDUCATION FUNDING AGENCY,13/11/2014,Grants,Financial Funding and Corporate Services,Grants to local authorities / other establishments within aggregate external funding or aggregate exchequer grant,CUMBRIA COUNTY COUNCIL,PAYBACSAUTO      196034,5054.00
Department for Education,EDUCATION FUNDING AGENCY,13/11/2014,Grants,Financial Funding and Corporate Services,Grants to local authorities / other establishments within aggregate external funding or aggregate exchequer grant,CUMBRIA COUNTY COUNCIL,PAYBACSAUTO      196034,75247.00
Department for Education,EDUCATION FUNDING AGENCY,13/11/2014,Grants,Financial Funding and Corporate Services,Grants to local authorities / other establishments within aggregate external funding or aggregate exchequer grant,CUMBRIA COUNTY COUNCIL,PAYBACSAUTO      196034,15833.00
Department for Education,EDUCATION FUNDING AGENCY,13/11/2014,Grants,Financial Funding and Corporate Services,Grants to local authorities / other establishments within aggregate external funding or aggregate exchequer grant,CUMBRIA COUNTY COUNCIL,PAYBACSAUTO      196034,676.00
Department for Education,EDUCATION FUNDING AGENCY,13/11/2014,Grants,Financial Funding and Corporate Services,Grants to local authorities / other establishments within aggregate external funding or aggregate exchequer grant,CUMBRIA COUNTY COUNCIL,PAYBACSAUTO      196034,2804.00
Department for Education,EDUCATION FUNDING AGENCY,13/11/2014,Grants,Financial Funding and Corporate Services,Grants to local authorities / other establishments within aggregate external funding or aggregate exchequer grant,CUMBRIA COUNTY COUNCIL,PAYBACSAUTO      196034,26667.00
Department for Education,EDUCATION FUNDING AGENCY,13/11/2014,Grants,Financial Funding and Corporate Services,Grants to local authorities / other establishments within aggregate external funding or aggregate exchequer grant,CUMBRIA COUNTY COUNCIL,PAYBACSAUTO      196034,579.00
Department for Education,EDUCATION FUNDING AGENCY,13/11/2014,Grants,Financial Funding and Corporate Services,Grants to local authorities / other establishments within aggregate external funding or aggregate exchequer grant,CUMBRIA COUNTY COUNCIL,PAYBACSAUTO      196034,500.00
Department for Education,EDUCATION FUNDING AGENCY,13/11/2014,Grants,Financial Funding and Corporate Services,Grants to local authorities / other establishments within aggregate external funding or aggregate exchequer grant,CUMBRIA COUNTY COUNCIL,PAYBACSAUTO      196034,102118.00
Department for Education,EDUCATION FUNDING AGENCY,13/11/2014,Grants,Financial Funding and Corporate Services,Grants to local authorities / other establishments within aggregate external funding or aggregate exchequer grant,CUMBRIA COUNTY COUNCIL,PAYBACSAUTO      196034,1133.00
Department for Education,EDUCATION FUNDING AGENCY,13/11/2014,Grants,Financial Funding and Corporate Services,Grants to local authorities / other establishments within aggregate external funding or aggregate exchequer grant,CUMBRIA COUNTY COUNCIL,PAYBACSAUTO      196034,89663.00
Department for Education,EDUCATION FUNDING AGENCY,13/11/2014,Grants,Financial Funding and Corporate Services,Grants to local authorities / other establishments within aggregate external funding or aggregate exchequer grant,CUMBRIA COUNTY COUNCIL,PAYBACSAUTO      196034,28333.00
Department for Education,EDUCATION FUNDING AGENCY,13/11/2014,Grants,Financial Funding and Corporate Services,Grants to local authorities / other establishments within aggregate external funding or aggregate exchequer grant,CUMBRIA COUNTY COUNCIL,PAYBACSAUTO      196034,33333.00
Department for Education,EDUCATION FUNDING AGENCY,13/11/2014,Grants,Financial Funding and Corporate Services,Grants to local authorities / other establishments within aggregate external funding or aggregate exchequer grant,CUMBRIA COUNTY COUNCIL,PAYBACSAUTO      196034,1518.00
Department for Education,EDUCATION FUNDING AGENCY,13/11/2014,Grants,Financial Funding and Corporate Services,Grants to local authorities / other establishments within aggregate external funding or aggregate exchequer grant,CUMBRIA COUNTY COUNCIL,PAYBACSAUTO      196034,1000.00
Department for Education,EDUCATION FUNDING AGENCY,13/11/2014,Grants,Financial Funding and Corporate Services,Current grants to local authorities,CUMBRIA COUNTY COUNCIL,PAYBACSAUTO      196034,6333.00
Department for Education,EDUCATION FUNDING AGENCY,13/11/2014,Grants,Financial Funding and Corporate Services,Grants to local authorities / other establishments within aggregate external funding or aggregate exchequer grant,CUMBRIA COUNTY COUNCIL,PAYBACSAUTO      196034,20000.00
Department for Education,EDUCATION FUNDING AGENCY,13/11/2014,Grants,Financial Funding and Corporate Services,Grants to local authorities / other establishments within aggregate external funding or aggregate exchequer grant,CUMBRIA COUNTY COUNCIL,PAYBACSAUTO      196034,54788.00
Department for Education,EDUCATION FUNDING AGENCY,13/11/2014,Grants,Financial Funding and Corporate Services,Grants to local authorities / other establishments within aggregate external funding or aggregate exchequer grant,CUMBRIA COUNTY COUNCIL,PAYBACSAUTO      196034,22976.00
Department for Education,EDUCATION FUNDING AGENCY,13/11/2014,Grants,Financial Funding and Corporate Services,Grants to local authorities / other establishments within aggregate external funding or aggregate exchequer grant,CUMBRIA COUNTY COUNCIL,PAYBACSAUTO      196034,4954.00
Department for Education,EDUCATION FUNDING AGENCY,13/11/2014,Grants,Financial Funding and Corporate Services,Grants to local authorities / other establishments within aggregate external funding or aggregate exchequer grant,CUMBRIA COUNTY COUNCIL,PAYBACSAUTO      196034,2265.00
Department for Education,EDUCATION FUNDING AGENCY,13/11/2014,Grants,Financial Funding and Corporate Services,Grants to local authorities / other establishments within aggregate external funding or aggregate exchequer grant,CUMBRIA COUNTY COUNCIL,PAYBACSAUTO      196034,3000.00
Department for Education,EDUCATION FUNDING AGENCY,13/11/2014,Grants,Financial Funding and Corporate Services,Grants to local authorities / other establishments within aggregate external funding or aggregate exchequer grant,DERBYSHIRE COUNTY COUNCIL,PAYBACSAUTO      196036,587.00
Department for Education,EDUCATION FUNDING AGENCY,13/11/2014,Grants,Financial Funding and Corporate Services,Grants to local authorities / other establishments within aggregate external funding or aggregate exchequer grant,DERBYSHIRE COUNTY COUNCIL,PAYBACSAUTO      196036,26255.00
Department for Education,EDUCATION FUNDING AGENCY,13/11/2014,Grants,Financial Funding and Corporate Services,Grants to local authorities / other establishments within aggregate external funding or aggregate exchequer grant,DERBYSHIRE COUNTY COUNCIL,PAYBACSAUTO      196036,1106.00
Department for Education,EDUCATION FUNDING AGENCY,13/11/2014,Grants,Financial Funding and Corporate Services,Grants to local authorities / other establishments within aggregate external funding or aggregate exchequer grant,DERBYSHIRE COUNTY COUNCIL,PAYBACSAUTO      196036,500.00
Department for Education,EDUCATION FUNDING AGENCY,13/11/2014,Grants,Financial Funding and Corporate Services,Grants to local authorities / other establishments within aggregate external funding or aggregate exchequer grant,DERBYSHIRE COUNTY COUNCIL,PAYBACSAUTO      196036,4762.00
Department for Education,EDUCATION FUNDING AGENCY,13/11/2014,Grants,Financial Funding and Corporate Services,Grants to local authorities / other establishments within aggregate external funding or aggregate exchequer grant,DERBYSHIRE COUNTY COUNCIL,PAYBACSAUTO      196036,1000.00
Department for Education,EDUCATION FUNDING AGENCY,13/11/2014,Grants,Financial Funding and Corporate Services,Grants to local authorities / other establishments within aggregate external funding or aggregate exchequer grant,DERBYSHIRE COUNTY COUNCIL,PAYBACSAUTO      196036,3165.00
Department for Education,EDUCATION FUNDING AGENCY,13/11/2014,Grants,Financial Funding and Corporate Services,Grants to local authorities / other establishments within aggregate external funding or aggregate exchequer grant,DERBYSHIRE COUNTY COUNCIL,PAYBACSAUTO      196036,2160.00
Department for Education,EDUCATION FUNDING AGENCY,13/11/2014,Grants,Financial Funding and Corporate Services,Grants to local authorities / other establishments within aggregate external funding or aggregate exchequer grant,DERBYSHIRE COUNTY COUNCIL,PAYBACSAUTO      196036,1000.00
Department for Education,EDUCATION FUNDING AGENCY,13/11/2014,Grants,Financial Funding and Corporate Services,Grants to local authorities / other establishments within aggregate external funding or aggregate exchequer grant,DERBYSHIRE COUNTY COUNCIL,PAYBACSAUTO      196036,2350.00
Department for Education,EDUCATION FUNDING AGENCY,13/11/2014,Grants,Financial Funding and Corporate Services,Grants to local authorities / other establishments within aggregate external funding or aggregate exchequer grant,DERBYSHIRE COUNTY COUNCIL,PAYBACSAUTO      196036,103772.00
Department for Education,EDUCATION FUNDING AGENCY,13/11/2014,Grants,Financial Funding and Corporate Services,Grants to local authorities / other establishments within aggregate external funding or aggregate exchequer grant,DERBYSHIRE COUNTY COUNCIL,PAYBACSAUTO      196036,41226.00
Department for Education,EDUCATION FUNDING AGENCY,13/11/2014,Grants,Financial Funding and Corporate Services,Grants to local authorities / other establishments within aggregate external funding or aggregate exchequer grant,DERBYSHIRE COUNTY COUNCIL,PAYBACSAUTO      196036,70795.00
Department for Education,EDUCATION FUNDING AGENCY,13/11/2014,Grants,Financial Funding and Corporate Services,Grants to local authorities / other establishments within aggregate external funding or aggregate exchequer grant,DERBYSHIRE COUNTY COUNCIL,PAYBACSAUTO      196036,56820.00
Department for Education,EDUCATION FUNDING AGENCY,13/11/2014,Grants,Financial Funding and Corporate Services,Grants to local authorities / other establishments within aggregate external funding or aggregate exchequer grant,DERBYSHIRE COUNTY COUNCIL,PAYBACSAUTO      196036,1000.00
Department for Education,EDUCATION FUNDING AGENCY,13/11/2014,Grants,Financial Funding and Corporate Services,Grants to local authorities / other establishments within aggregate external funding or aggregate exchequer grant,DERBYSHIRE COUNTY COUNCIL,PAYBACSAUTO      196036,2337.00
Department for Education,EDUCATION FUNDING AGENCY,13/11/2014,Grants,Financial Funding and Corporate Services,Grants to local authorities / other establishments within aggregate external funding or aggregate exchequer grant,DERBYSHIRE COUNTY COUNCIL,PAYBACSAUTO      196036,1027.00
Department for Education,EDUCATION FUNDING AGENCY,13/11/2014,Grants,Financial Funding and Corporate Services,Grants to local authorities / other establishments within aggregate external funding or aggregate exchequer grant,DERBYSHIRE COUNTY COUNCIL,PAYBACSAUTO      196036,53366.00
Department for Education,EDUCATION FUNDING AGENCY,13/11/2014,Grants,Financial Funding and Corporate Services,Grants to local authorities / other establishments within aggregate external funding or aggregate exchequer grant,DERBYSHIRE COUNTY COUNCIL,PAYBACSAUTO      196036,347.00
Department for Education,EDUCATION FUNDING AGENCY,13/11/2014,Grants,Financial Funding and Corporate Services,Grants to local authorities / other establishments within aggregate external funding or aggregate exchequer grant,DERBYSHIRE COUNTY COUNCIL,PAYBACSAUTO      196036,1248.00
Department for Education,EDUCATION FUNDING AGENCY,13/11/2014,Grants,Financial Funding and Corporate Services,Grants to local authorities / other establishments within aggregate external funding or aggregate exchequer grant,DERBYSHIRE COUNTY COUNCIL,PAYBACSAUTO      196036,19167.00
Department for Education,EDUCATION FUNDING AGENCY,13/11/2014,Grants,Financial Funding and Corporate Services,Grants to local authorities / other establishments within aggregate external funding or aggregate exchequer grant,DERBYSHIRE COUNTY COUNCIL,PAYBACSAUTO      196036,63081.00
Department for Education,EDUCATION FUNDING AGENCY,13/11/2014,Grants,Financial Funding and Corporate Services,Grants to local authorities / other establishments within aggregate external funding or aggregate exchequer grant,DERBYSHIRE COUNTY COUNCIL,PAYBACSAUTO      196036,5195.00
Department for Education,EDUCATION FUNDING AGENCY,13/11/2014,Grants,Financial Funding and Corporate Services,Grants to local authorities / other establishments within aggregate external funding or aggregate exchequer grant,DERBYSHIRE COUNTY COUNCIL,PAYBACSAUTO      196036,545.00
Department for Education,EDUCATION FUNDING AGENCY,13/11/2014,Grants,Financial Funding and Corporate Services,Grants to local authorities / other establishments within aggregate external funding or aggregate exchequer grant,DERBYSHIRE COUNTY COUNCIL,PAYBACSAUTO      196036,15000.00
Department for Education,EDUCATION FUNDING AGENCY,13/11/2014,Grants,Financial Funding and Corporate Services,Grants to local authorities / other establishments within aggregate external funding or aggregate exchequer grant,DERBYSHIRE COUNTY COUNCIL,PAYBACSAUTO      196036,4663.00
Department for Education,EDUCATION FUNDING AGENCY,13/11/2014,Grants,Financial Funding and Corporate Services,Current grants to local authorities,DERBYSHIRE COUNTY COUNCIL,PAYBACSAUTO      196036,10666.00
Department for Education,EDUCATION FUNDING AGENCY,13/11/2014,Grants,Financial Funding and Corporate Services,Grants to local authorities / other establishments within aggregate external funding or aggregate exchequer grant,DERBYSHIRE COUNTY COUNCIL,PAYBACSAUTO      196036,1500.00
Department for Education,EDUCATION FUNDING AGENCY,13/11/2014,Grants,Financial Funding and Corporate Services,Grants to local authorities / other establishments within aggregate external funding or aggregate exchequer grant,DERBYSHIRE COUNTY COUNCIL,PAYBACSAUTO      196036,5500.00
Department for Education,EDUCATION FUNDING AGENCY,13/11/2014,Grants,Financial Funding and Corporate Services,Grants to local authorities / other establishments within aggregate external funding or aggregate exchequer grant,DERBYSHIRE COUNTY COUNCIL,PAYBACSAUTO      196036,2500.00
Department for Education,EDUCATION FUNDING AGENCY,13/11/2014,Grants,Financial Funding and Corporate Services,Grants to local authorities / other establishments within aggregate external funding or aggregate exchequer grant,DERBYSHIRE COUNTY COUNCIL,PAYBACSAUTO      196036,56799.00
Department for Education,EDUCATION FUNDING AGENCY,13/11/2014,Grants,Financial Funding and Corporate Services,Grants to local authorities / other establishments within aggregate external funding or aggregate exchequer grant,DERBYSHIRE COUNTY COUNCIL,PAYBACSAUTO      196036,4164.00
Department for Education,EDUCATION FUNDING AGENCY,13/11/2014,Grants,Financial Funding and Corporate Services,Grants to local authorities / other establishments within aggregate external funding or aggregate exchequer grant,DERBYSHIRE COUNTY COUNCIL,PAYBACSAUTO      196036,2397.00
Department for Education,EDUCATION FUNDING AGENCY,13/11/2014,Grants,Financial Funding and Corporate Services,Grants to local authorities / other establishments within aggregate external funding or aggregate exchequer grant,DERBYSHIRE COUNTY COUNCIL,PAYBACSAUTO      196036,9167.00
Department for Education,EDUCATION FUNDING AGENCY,13/11/2014,Grants,Financial Funding and Corporate Services,Grants to local authorities / other establishments within aggregate external funding or aggregate exchequer grant,DERBYSHIRE COUNTY COUNCIL,PAYBACSAUTO      196036,116191.00
Department for Education,EDUCATION FUNDING AGENCY,13/11/2014,Grants,Financial Funding and Corporate Services,Grants to local authorities / other establishments within aggregate external funding or aggregate exchequer grant,DERBYSHIRE COUNTY COUNCIL,PAYBACSAUTO      196036,897.00
Department for Education,EDUCATION FUNDING AGENCY,13/11/2014,Grants,Financial Funding and Corporate Services,Grants to local authorities / other establishments within aggregate external funding or aggregate exchequer grant,DERBYSHIRE COUNTY COUNCIL,PAYBACSAUTO      196036,7045.00
Department for Education,EDUCATION FUNDING AGENCY,13/11/2014,Grants,Financial Funding and Corporate Services,Grants to local authorities / other establishments within aggregate external funding or aggregate exchequer grant,DERBYSHIRE COUNTY COUNCIL,PAYBACSAUTO      196036,79307.00
Department for Education,EDUCATION FUNDING AGENCY,13/11/2014,Grants,Financial Funding and Corporate Services,Grants to local authorities / other establishments within aggregate external funding or aggregate exchequer grant,DERBYSHIRE COUNTY COUNCIL,PAYBACSAUTO      196036,5751.00
Department for Education,EDUCATION FUNDING AGENCY,13/11/2014,Grants,Financial Funding and Corporate Services,Grants to local authorities / other establishments within aggregate external funding or aggregate exchequer grant,DERBYSHIRE COUNTY COUNCIL,PAYBACSAUTO      196036,3839.00
Department for Education,EDUCATION FUNDING AGENCY,13/11/2014,Grants,Financial Funding and Corporate Services,Grants to local authorities / other establishments within aggregate external funding or aggregate exchequer grant,DERBYSHIRE COUNTY COUNCIL,PAYBACSAUTO      196036,500.00
Department for Education,EDUCATION FUNDING AGENCY,13/11/2014,Grants,Financial Funding and Corporate Services,Current grants to local authorities,DERBYSHIRE COUNTY COUNCIL,PAYBACSAUTO      196036,5058.00
Department for Education,EDUCATION FUNDING AGENCY,13/11/2014,Grants,Financial Funding and Corporate Services,Grants to local authorities / other establishments within aggregate external funding or aggregate exchequer grant,DERBYSHIRE COUNTY COUNCIL,PAYBACSAUTO      196036,17054.00
Department for Education,EDUCATION FUNDING AGENCY,13/11/2014,Grants,Financial Funding and Corporate Services,Grants to local authorities / other establishments within aggregate external funding or aggregate exchequer grant,DERBYSHIRE COUNTY COUNCIL,PAYBACSAUTO      196036,104731.00
Department for Education,EDUCATION FUNDING AGENCY,13/11/2014,Grants,Financial Funding and Corporate Services,Grants to local authorities / other establishments within aggregate external funding or aggregate exchequer grant,DERBYSHIRE COUNTY COUNCIL,PAYBACSAUTO      196036,29977.00
Department for Education,EDUCATION FUNDING AGENCY,13/11/2014,Grants,Financial Funding and Corporate Services,Grants to local authorities / other establishments within aggregate external funding or aggregate exchequer grant,DERBYSHIRE COUNTY COUNCIL,PAYBACSAUTO      196036,853.00
Department for Education,EDUCATION FUNDING AGENCY,13/11/2014,Grants,Financial Funding and Corporate Services,Grants to local authorities / other establishments within aggregate external funding or aggregate exchequer grant,DERBYSHIRE COUNTY COUNCIL,PAYBACSAUTO      196036,31667.00
Department for Education,EDUCATION FUNDING AGENCY,13/11/2014,Grants,Financial Funding and Corporate Services,Grants to local authorities / other establishments within aggregate external funding or aggregate exchequer grant,DERBYSHIRE COUNTY COUNCIL,PAYBACSAUTO      196036,18333.00
Department for Education,EDUCATION FUNDING AGENCY,13/11/2014,Grants,Financial Funding and Corporate Services,Grants to local authorities / other establishments within aggregate external funding or aggregate exchequer grant,DERBYSHIRE COUNTY COUNCIL,PAYBACSAUTO      196036,82517.00
Department for Education,EDUCATION FUNDING AGENCY,13/11/2014,Grants,Financial Funding and Corporate Services,Grants to local authorities / other establishments within aggregate external funding or aggregate exchequer grant,DERBYSHIRE COUNTY COUNCIL,PAYBACSAUTO      196036,70513.00
Department for Education,EDUCATION FUNDING AGENCY,13/11/2014,Grants,Financial Funding and Corporate Services,Grants to local authorities / other establishments within aggregate external funding or aggregate exchequer grant,DERBYSHIRE COUNTY COUNCIL,PAYBACSAUTO      196036,1000.00
Department for Education,EDUCATION FUNDING AGENCY,13/11/2014,Grants,Financial Funding and Corporate Services,Grants to local authorities / other establishments within aggregate external funding or aggregate exchequer grant,DERBYSHIRE COUNTY COUNCIL,PAYBACSAUTO      196036,32580.00
Department for Education,EDUCATION FUNDING AGENCY,13/11/2014,Grants,Financial Funding and Corporate Services,Grants to local authorities / other establishments within aggregate external funding or aggregate exchequer grant,DERBYSHIRE COUNTY COUNCIL,PAYBACSAUTO      196036,14167.00
Department for Education,EDUCATION FUNDING AGENCY,13/11/2014,Grants,Financial Funding and Corporate Services,Grants to local authorities / other establishments within aggregate external funding or aggregate exchequer grant,DERBYSHIRE COUNTY COUNCIL,PAYBACSAUTO      196036,3029.00
Department for Education,EDUCATION FUNDING AGENCY,13/11/2014,Grants,Financial Funding and Corporate Services,Grants to local authorities / other establishments within aggregate external funding or aggregate exchequer grant,DERBYSHIRE COUNTY COUNCIL,PAYBACSAUTO      196036,500.00
Department for Education,EDUCATION FUNDING AGENCY,13/11/2014,Grants,Financial Funding and Corporate Services,Grants to local authorities / other establishments within aggregate external funding or aggregate exchequer grant,DERBYSHIRE COUNTY COUNCIL,PAYBACSAUTO      196036,26947.00
Department for Education,EDUCATION FUNDING AGENCY,13/11/2014,Grants,Financial Funding and Corporate Services,Grants to local authorities / other establishments within aggregate external funding or aggregate exchequer grant,DERBYSHIRE COUNTY COUNCIL,PAYBACSAUTO      196036,500.00
Department for Education,EDUCATION FUNDING AGENCY,13/11/2014,Grants,Financial Funding and Corporate Services,Grants to local authorities / other establishments within aggregate external funding or aggregate exchequer grant,DERBYSHIRE COUNTY COUNCIL,PAYBACSAUTO      196036,85270.00
Department for Education,EDUCATION FUNDING AGENCY,13/11/2014,Grants,Financial Funding and Corporate Services,Grants to local authorities / other establishments within aggregate external funding or aggregate exchequer grant,DERBY CITY COUNCIL,PAYBACSAUTO      196037,4365.00
Department for Education,EDUCATION FUNDING AGENCY,13/11/2014,Grants,Financial Funding and Corporate Services,Grants to local authorities / other establishments within aggregate external funding or aggregate exchequer grant,DERBY CITY COUNCIL,PAYBACSAUTO      196037,891.00
Department for Education,EDUCATION FUNDING AGENCY,13/11/2014,Grants,Financial Funding and Corporate Services,Current grants to local authorities,DERBY CITY COUNCIL,PAYBACSAUTO      196037,577.00
Department for Education,EDUCATION FUNDING AGENCY,13/11/2014,Grants,Financial Funding and Corporate Services,Grants to local authorities / other establishments within aggregate external funding or aggregate exchequer grant,DERBY CITY COUNCIL,PAYBACSAUTO      196037,25000.00
Department for Education,EDUCATION FUNDING AGENCY,13/11/2014,Grants,Financial Funding and Corporate Services,Grants to local authorities / other establishments within aggregate external funding or aggregate exchequer grant,DERBY CITY COUNCIL,PAYBACSAUTO      196037,66460.00
Department for Education,EDUCATION FUNDING AGENCY,13/11/2014,Grants,Financial Funding and Corporate Services,Grants to local authorities / other establishments within aggregate external funding or aggregate exchequer grant,DERBY CITY COUNCIL,PAYBACSAUTO      196037,1147.00
Department for Education,EDUCATION FUNDING AGENCY,13/11/2014,Grants,Financial Funding and Corporate Services,Grants to local authorities / other establishments within aggregate external funding or aggregate exchequer grant,DERBY CITY COUNCIL,PAYBACSAUTO      196037,53861.00
Department for Education,EDUCATION FUNDING AGENCY,13/11/2014,Grants,Financial Funding and Corporate Services,Grants to local authorities / other establishments within aggregate external funding or aggregate exchequer grant,DERBY CITY COUNCIL,PAYBACSAUTO      196037,24855.00
Department for Education,EDUCATION FUNDING AGENCY,13/11/2014,Grants,Financial Funding and Corporate Services,Grants to local authorities / other establishments within aggregate external funding or aggregate exchequer grant,DERBY CITY COUNCIL,PAYBACSAUTO      196037,6000.00
Department for Education,EDUCATION FUNDING AGENCY,13/11/2014,Grants,Financial Funding and Corporate Services,Grants to local authorities / other establishments within aggregate external funding or aggregate exchequer grant,DERBY CITY COUNCIL,PAYBACSAUTO      196037,18333.00
Department for Education,EDUCATION FUNDING AGENCY,13/11/2014,Grants,Financial Funding and Corporate Services,Grants to local authorities / other establishments within aggregate external funding or aggregate exchequer grant,DERBY CITY COUNCIL,PAYBACSAUTO      196037,1148.00
Department for Education,EDUCATION FUNDING AGENCY,13/11/2014,Grants,Financial Funding and Corporate Services,Grants to local authorities / other establishments within aggregate external funding or aggregate exchequer grant,DERBY CITY COUNCIL,PAYBACSAUTO      196037,87230.00
Department for Education,EDUCATION FUNDING AGENCY,13/11/2014,Grants,Financial Funding and Corporate Services,Current grants to local authorities,DERBY CITY COUNCIL,PAYBACSAUTO      196037,1755.00
Department for Education,EDUCATION FUNDING AGENCY,13/11/2014,Grants,Financial Funding and Corporate Services,Grants to local authorities / other establishments within aggregate external funding or aggregate exchequer grant,DEVON COUNTY COUNCIL,PAYBACSAUTO      196038,61386.00
Department for Education,EDUCATION FUNDING AGENCY,13/11/2014,Grants,Financial Funding and Corporate Services,Grants to local authorities / other establishments within aggregate external funding or aggregate exchequer grant,DEVON COUNTY COUNCIL,PAYBACSAUTO      196038,43909.00
Department for Education,EDUCATION FUNDING AGENCY,13/11/2014,Grants,Financial Funding and Corporate Services,Grants to local authorities / other establishments within aggregate external funding or aggregate exchequer grant,DEVON COUNTY COUNCIL,PAYBACSAUTO      196038,34689.00
Department for Education,EDUCATION FUNDING AGENCY,13/11/2014,Grants,Financial Funding and Corporate Services,Grants to local authorities / other establishments within aggregate external funding or aggregate exchequer grant,DEVON COUNTY COUNCIL,PAYBACSAUTO      196038,24167.00
Department for Education,EDUCATION FUNDING AGENCY,13/11/2014,Grants,Financial Funding and Corporate Services,Grants to local authorities / other establishments within aggregate external funding or aggregate exchequer grant,DEVON COUNTY COUNCIL,PAYBACSAUTO      196038,58219.00
Department for Education,EDUCATION FUNDING AGENCY,13/11/2014,Grants,Financial Funding and Corporate Services,Current grants to local authorities,DEVON COUNTY COUNCIL,PAYBACSAUTO      196038,3411.00
Department for Education,EDUCATION FUNDING AGENCY,13/11/2014,Grants,Financial Funding and Corporate Services,Grants to local authorities / other establishments within aggregate external funding or aggregate exchequer grant,DEVON COUNTY COUNCIL,PAYBACSAUTO      196038,1000.00
Department for Education,EDUCATION FUNDING AGENCY,13/11/2014,Grants,Financial Funding and Corporate Services,Grants to local authorities / other establishments within aggregate external funding or aggregate exchequer grant,DEVON COUNTY COUNCIL,PAYBACSAUTO      196038,6226.00
Department for Education,EDUCATION FUNDING AGENCY,13/11/2014,Grants,Financial Funding and Corporate Services,Grants to local authorities / other establishments within aggregate external funding or aggregate exchequer grant,DEVON COUNTY COUNCIL,PAYBACSAUTO      196038,3356.00
Department for Education,EDUCATION FUNDING AGENCY,13/11/2014,Grants,Financial Funding and Corporate Services,Current grants to local authorities,DEVON COUNTY COUNCIL,PAYBACSAUTO      196038,3480.00
Department for Education,EDUCATION FUNDING AGENCY,13/11/2014,Grants,Financial Funding and Corporate Services,Grants to local authorities / other establishments within aggregate external funding or aggregate exchequer grant,DEVON COUNTY COUNCIL,PAYBACSAUTO      196038,2012.00
Department for Education,EDUCATION FUNDING AGENCY,13/11/2014,Grants,Financial Funding and Corporate Services,Grants to local authorities / other establishments within aggregate external funding or aggregate exchequer grant,DEVON COUNTY COUNCIL,PAYBACSAUTO      196038,1000.00
Department for Education,EDUCATION FUNDING AGENCY,13/11/2014,Grants,Financial Funding and Corporate Services,Grants to local authorities / other establishments within aggregate external funding or aggregate exchequer grant,DEVON COUNTY COUNCIL,PAYBACSAUTO      196038,807.00
Department for Education,EDUCATION FUNDING AGENCY,13/11/2014,Grants,Financial Funding and Corporate Services,Grants to local authorities / other establishments within aggregate external funding or aggregate exchequer grant,DEVON COUNTY COUNCIL,PAYBACSAUTO      196038,500.00
Department for Education,EDUCATION FUNDING AGENCY,13/11/2014,Grants,Financial Funding and Corporate Services,Current grants to local authorities,DEVON COUNTY COUNCIL,PAYBACSAUTO      196038,3125.00
Department for Education,EDUCATION FUNDING AGENCY,13/11/2014,Grants,Financial Funding and Corporate Services,Grants to local authorities / other establishments within aggregate external funding or aggregate exchequer grant,DEVON COUNTY COUNCIL,PAYBACSAUTO      196038,113062.00
Department for Education,EDUCATION FUNDING AGENCY,13/11/2014,Grants,Financial Funding and Corporate Services,Grants to local authorities / other establishments within aggregate external funding or aggregate exchequer grant,DEVON COUNTY COUNCIL,PAYBACSAUTO      196038,1000.00
Department for Education,EDUCATION FUNDING AGENCY,13/11/2014,Grants,Financial Funding and Corporate Services,Grants to local authorities / other establishments within aggregate external funding or aggregate exchequer grant,DEVON COUNTY COUNCIL,PAYBACSAUTO      196038,20000.00
Department for Education,EDUCATION FUNDING AGENCY,13/11/2014,Grants,Financial Funding and Corporate Services,Grants to local authorities / other establishments within aggregate external funding or aggregate exchequer grant,DEVON COUNTY COUNCIL,PAYBACSAUTO      196038,97768.00
Department for Education,EDUCATION FUNDING AGENCY,13/11/2014,Grants,Financial Funding and Corporate Services,Grants to local authorities / other establishments within aggregate external funding or aggregate exchequer grant,DEVON COUNTY COUNCIL,PAYBACSAUTO      196038,28333.00
Department for Education,EDUCATION FUNDING AGENCY,13/11/2014,Grants,Financial Funding and Corporate Services,Grants to local authorities / other establishments within aggregate external funding or aggregate exchequer grant,DEVON COUNTY COUNCIL,PAYBACSAUTO      196038,5833.00
Department for Education,EDUCATION FUNDING AGENCY,13/11/2014,Grants,Financial Funding and Corporate Services,Grants to local authorities / other establishments within aggregate external funding or aggregate exchequer grant,DEVON COUNTY COUNCIL,PAYBACSAUTO      196038,5000.00
Department for Education,EDUCATION FUNDING AGENCY,13/11/2014,Grants,Financial Funding and Corporate Services,Grants to local authorities / other establishments within aggregate external funding or aggregate exchequer grant,DEVON COUNTY COUNCIL,PAYBACSAUTO      196038,166.00
Department for Education,EDUCATION FUNDING AGENCY,13/11/2014,Grants,Financial Funding and Corporate Services,Grants to local authorities / other establishments within aggregate external funding or aggregate exchequer grant,DEVON COUNTY COUNCIL,PAYBACSAUTO      196038,2538.00
Department for Education,EDUCATION FUNDING AGENCY,13/11/2014,Grants,Financial Funding and Corporate Services,Grants to local authorities / other establishments within aggregate external funding or aggregate exchequer grant,DONCASTER METRO BOROUGH COUNCIL,PAYBACSAUTO      196039,12500.00
Department for Education,EDUCATION FUNDING AGENCY,13/11/2014,Grants,Financial Funding and Corporate Services,Grants to local authorities / other establishments within aggregate external funding or aggregate exchequer grant,DONCASTER METRO BOROUGH COUNCIL,PAYBACSAUTO      196039,1000.00
Department for Education,EDUCATION FUNDING AGENCY,13/11/2014,Grants,Financial Funding and Corporate Services,Grants to local authorities / other establishments within aggregate external funding or aggregate exchequer grant,DONCASTER METRO BOROUGH COUNCIL,PAYBACSAUTO      196039,37941.00
Department for Education,EDUCATION FUNDING AGENCY,13/11/2014,Grants,Financial Funding and Corporate Services,Grants to local authorities / other establishments within aggregate external funding or aggregate exchequer grant,DONCASTER METRO BOROUGH COUNCIL,PAYBACSAUTO      196039,9167.00
Department for Education,EDUCATION FUNDING AGENCY,13/11/2014,Grants,Financial Funding and Corporate Services,Grants to local authorities / other establishments within aggregate external funding or aggregate exchequer grant,DONCASTER METRO BOROUGH COUNCIL,PAYBACSAUTO      196039,33333.00
Department for Education,EDUCATION FUNDING AGENCY,13/11/2014,Grants,Financial Funding and Corporate Services,Grants to local authorities / other establishments within aggregate external funding or aggregate exchequer grant,DORSET COUNTY COUNCIL,PAYBACSAUTO      196040,2000.00
Department for Education,EDUCATION FUNDING AGENCY,13/11/2014,Grants,Financial Funding and Corporate Services,Grants to local authorities / other establishments within aggregate external funding or aggregate exchequer grant,DORSET COUNTY COUNCIL,PAYBACSAUTO      196040,1067.00
Department for Education,EDUCATION FUNDING AGENCY,13/11/2014,Grants,Financial Funding and Corporate Services,Grants to local authorities / other establishments within aggregate external funding or aggregate exchequer grant,DORSET COUNTY COUNCIL,PAYBACSAUTO      196040,14907.00
Department for Education,EDUCATION FUNDING AGENCY,13/11/2014,Grants,Financial Funding and Corporate Services,Grants to local authorities / other establishments within aggregate external funding or aggregate exchequer grant,DORSET COUNTY COUNCIL,PAYBACSAUTO      196040,2935.00
Department for Education,EDUCATION FUNDING AGENCY,13/11/2014,Grants,Financial Funding and Corporate Services,Grants to local authorities / other establishments within aggregate external funding or aggregate exchequer grant,DORSET COUNTY COUNCIL,PAYBACSAUTO      196040,1000.00
Department for Education,EDUCATION FUNDING AGENCY,13/11/2014,Grants,Financial Funding and Corporate Services,Grants to local authorities / other establishments within aggregate external funding or aggregate exchequer grant,DORSET COUNTY COUNCIL,PAYBACSAUTO      196040,500.00
Department for Education,EDUCATION FUNDING AGENCY,13/11/2014,Grants,Financial Funding and Corporate Services,Grants to local authorities / other establishments within aggregate external funding or aggregate exchequer grant,DORSET COUNTY COUNCIL,PAYBACSAUTO      196040,3913.00
